{"text_format":"1","workbook":"xlsx","n_sheets":3,"sheets":["Общая форма","Лифты","списки"],"not_rendered":{"charts":0,"images":0,"macros":1,"external_links":0,"defined_names":46,"comments":0,"pivot_tables":0},"unopened":[],"bounds":{"document_bytes":16777216,"sheet_cells":100000,"rows_first":2000,"rows_last":500,"rows_between":2000,"halvings":0,"cell_chars":16384,"cell_head_chars":4096},"cells_cut":0,"cells_raw":0,"read":"whole","date_system":"1900"}

{"sheet":"Общая форма","index":0,"n_rows":31,"n_cols":256,"rows_kept":31,"cut":false,"hidden":false,"merged":[[2,23,5,23],[0,2,0,255],[1,0,5,0],[1,1,5,1],[1,2,5,2],[1,3,5,3],[1,4,3,17],[1,20,1,82],[1,83,1,94],[1,95,1,177],[2,24,5,24],[2,25,5,25],[2,26,5,26],[2,29,5,29],[2,31,5,31],[2,130,2,141],[3,95,5,95],[3,96,5,96],[3,97,5,97],[1,178,1,255],[2,32,5,32],[2,30,5,30],[2,33,5,33],[2,34,5,34],[2,35,5,35],[2,36,5,36],[2,37,5,37],[2,107,2,117],[3,38,5,38],[3,40,5,40],[3,39,5,39],[2,38,2,39],[2,40,2,43],[3,52,5,52],[3,53,3,74],[3,75,5,75],[3,43,5,43],[3,44,5,44],[3,45,5,45],[2,88,5,88],[2,52,2,74],[4,63,4,71],[4,72,4,74],[4,53,4,62],[2,44,2,48],[3,46,5,46],[3,47,5,47],[2,166,2,177],[2,89,5,89],[2,92,5,92],[2,93,5,93],[3,113,5,113],[3,114,5,114],[2,118,2,129],[2,75,2,80],[2,142,2,153],[3,104,5,104],[3,111,5,111],[3,112,5,112],[3,98,5,98],[3,76,5,76],[3,77,5,77],[3,78,5,78],[3,79,5,79],[3,80,5,80],[3,146,5,146],[3,139,5,139],[3,140,5,140],[3,141,5,141],[3,142,5,142],[3,147,5,147],[2,236,2,241],[2,242,2,247],[2,81,2,82],[2,83,5,83],[2,84,5,84],[2,85,5,85],[2,86,5,86],[2,87,5,87],[3,81,5,81],[2,94,5,94],[3,82,5,82],[2,90,5,90],[2,91,5,91],[3,99,5,99],[3,119,5,119],[3,120,5,120],[2,178,2,183],[2,184,2,190],[3,105,5,105],[3,107,5,107],[3,108,5,108],[3,109,5,109],[3,144,5,144],[3,145,5,145],[2,254,2,255],[2,203,2,208],[2,222,2,228],[2,95,2,106],[2,229,2,235],[2,154,2,165],[3,115,5,115],[3,116,5,116],[3,117,5,117],[3,118,5,118],[3,110,5,110],[3,100,5,100],[3,101,5,101],[3,102,5,102],[3,103,5,103],[3,106,5,106],[2,197,2,202],[2,248,2,253],[2,209,2,214],[2,215,2,221],[2,191,2,196],[3,137,5,137],[3,138,5,138],[3,143,5,143],[3,148,5,148],[3,133,5,133],[3,134,5,134],[3,121,5,121],[3,122,5,122],[3,135,5,135],[3,136,5,136],[3,123,5,123],[3,124,5,124],[3,125,5,125],[3,126,5,126],[3,127,5,127],[3,128,5,128],[3,129,5,129],[3,130,5,130],[3,131,5,131],[3,132,5,132],[3,159,5,159],[3,160,5,160],[3,161,5,161],[3,162,5,162],[3,167,5,167],[3,168,5,168],[3,149,5,149],[3,150,5,150],[3,155,5,155],[3,156,5,156],[3,157,5,157],[3,158,5,158],[3,151,5,151],[3,152,5,152],[3,153,5,153],[3,154,5,154],[3,171,5,171],[3,172,5,172],[3,173,5,173],[3,174,5,174],[3,175,5,175],[3,176,5,176],[3,169,5,169],[3,170,5,170],[3,163,5,163],[3,164,5,164],[3,165,5,165],[3,166,5,166],[4,182,5,182],[4,183,5,183],[4,185,5,185],[4,186,5,186],[4,178,5,178],[4,179,5,179],[3,177,5,177],[3,178,3,179],[3,180,3,183],[3,184,5,184],[4,180,5,180],[4,181,5,181],[4,189,5,189],[4,190,5,190],[4,191,5,191],[4,192,5,192],[4,193,5,193],[4,194,5,194],[4,187,5,187],[4,188,5,188],[3,185,3,186],[3,187,3,190],[3,191,3,192],[3,193,3,196],[4,208,5,208],[4,197,5,197],[4,198,5,198],[4,199,5,199],[4,200,5,200],[4,195,5,195],[4,196,5,196],[3,203,3,204],[3,205,3,208],[4,201,5,201],[4,202,5,202],[4,203,5,203],[4,204,5,204],[4,205,5,205],[4,206,5,206],[3,197,3,198],[3,199,3,202],[4,207,5,207],[4,216,5,216],[4,217,5,217],[4,218,5,218],[3,216,3,217],[4,221,5,221],[4,209,5,209],[4,210,5,210],[4,211,5,211],[3,215,5,215],[4,212,5,212],[4,213,5,213],[4,214,5,214],[3,218,3,221],[3,209,3,210],[3,211,3,214],[4,219,5,219],[4,220,5,220],[3,255,3,255],[4,252,5,252],[4,253,5,253],[4,255,5,255],[4,232,5,232],[4,233,5,233],[3,244,3,247],[3,248,3,249],[4,234,5,234],[4,235,5,235],[4,236,5,236],[4,237,5,237],[4,238,5,238],[4,239,5,239],[4,246,5,246],[4,247,5,247],[4,244,5,244],[4,245,5,245],[4,240,5,240],[4,241,5,241],[4,242,5,242],[4,243,5,243],[3,250,3,253],[3,254,5,254],[4,4,5,4],[4,5,5,5],[4,6,5,6],[4,7,5,7],[3,27,5,27],[3,28,5,28],[2,49,4,51],[3,48,5,48],[4,8,5,8],[4,9,5,9],[4,10,4,12],[4,13,5,13],[4,14,5,14],[4,15,5,15],[4,16,5,16],[4,17,5,17],[3,42,5,42],[3,41,5,41],[1,18,5,18],[1,19,5,19],[2,20,5,20],[2,21,5,21],[2,27,2,28],[2,22,5,22],[4,248,5,248],[4,249,5,249],[4,250,5,250],[4,251,5,251],[4,230,5,230],[4,231,5,231],[3,222,5,222],[3,230,3,231],[3,232,3,235],[3,236,3,237],[3,238,3,241],[3,242,3,243],[3,229,5,229],[4,226,5,226],[4,227,5,227],[4,228,5,228],[4,224,5,224],[4,225,5,225],[3,223,3,224],[3,225,3,228],[4,223,5,223]]}
[null,null,"                                                     Форма предоставления сведений о техническом состоянии многоквартирных домов, расположенных на территории Московской области"]
["Порядковый номер","Статус дома (М - многоквартирный (3 квартиры и больше), Б - блокированной застройки (в т.ч. двухквартирный), А - аварийный (официально признанный таковым), С - подлежащий сносу в рамках программы развития застроенных территорий)","Наименование муниципального района Московской области (городского округа)\n(выбирается из списка)","Наименование муниципального образования — поселения (городского, сельского), входящего в состав муниципального района Московской  области\n(выбирается из списка в зависимости от выбранного значения столбца 3)","Почтовый адрес дома",null,null,null,null,null,null,null,null,null,null,null,null,null,"Кадастровый номер земельного участка","Общая площадь земельного участка по данным межевания\n(целое или дробное число больше ноля)","Технические характеристики многоквартирного дома",null,null,null,null,null,null,null,null,null,null,null,null,null,null,null,null,null,null,null,null,null,null,null,null,null,null,null,null,null,null,null,null,null,null,null,null,null,null,null,null,null,null,null,null,null,null,null,null,null,null,null,null,null,null,null,null,null,null,null,null,null,null,"Способ управления многоквартирным домом ",null,null,null,null,null,null,null,null,null,null,null,"Сведения о лицах, оказывающих коммунальные услуги в многоквартирном доме:",null,null,null,null,null,null,null,null,null,null,null,null,null,null,null,null,null,null,null,null,null,null,null,null,null,null,null,null,null,null,null,null,null,null,null,null,null,null,null,null,null,null,null,null,null,null,null,null,null,null,null,null,null,null,null,null,null,null,null,null,null,null,null,null,null,null,null,null,null,null,null,null,null,null,null,null,null,null,null,null,null,null,"Сведения о техническом состоянии конструктивных элементов многоквартирного дома"]
[null,null,null,null,null,null,null,null,null,null,null,null,null,null,null,null,null,null,null,null,"Год ввода многоквартирного дома в эксплуатацию\n(четырехзначное число)","Cерия, тип здания","Вид и тип фундамента","Вид и тип кровли","Материал наружных стен дома","Количество подъездов\n(целое число больше ноля)","Количество лестниц\n(целое число)","Этажность дома",null,"Количество секций (если  дом  разной этажности)\n(целое число от единицы и выше)","Количество лифтов.\n(целое число)","Количество проживающих\n(целое число)","Количество лицевых счетов\n(целое число)","Мансарды. Площадь.\n(целое или дробное число)","Принадлежность к памятнику архитектуры  (да/нет)","Срок службы здания (нормативный, согласно техническому паспорту)\n(целое число больше ноля)","Общий износ здания (по данным технической инвентаризации) на дату заполнения, %\n(целое число от ноля до ста)","Общая площадь дома (м2)\n(целое или дробное число больше ноля)","Помещения  общего пользования",null,"Технические помещения",null,null,null,"Другие вспомогательные помещения",null,null,null,null,"Перечень помещений, относящихся к общему долевому имуществу собственников помещений, кроме мест общего пользования ",null,null,"Жилые помещения ",null,null,null,null,null,null,null,null,null,null,null,null,null,null,null,null,null,null,null,null,null,null,"Нежилые помещения ",null,null,null,null,null,"Энергоэффективность",null,"Реквизиты протокола общего собрания собственников помещений в МКД, подтверждающего выбранный способ управления / реквизиты протокола открытого конкурса органа местного самоуправления по отбору управляющей организации для управления многоквартирным домом","Наименование лица, осуществляющего управление многоквартирным домом","Наименование обслуживающей компании (если таковая есть)","ОГРН","КПП","ИНН","Телефон, факс","Адрес фактический","Адрес юридический","Официальный сайт в сети интернет","Адрес электронной почты","Дата начала обслуживания дома","Отопление (централизованное):",null,null,null,null,null,null,null,null,null,null,null,"Электроснабжение",null,null,null,null,null,null,null,null,null,null,"Газоснабжение:",null,null,null,null,null,null,null,null,null,null,null,"Горячее водоснабжение",null,null,null,null,null,null,null,null,null,null,null,"Холодное водоснабжение:",null,null,null,null,null,null,null,null,null,null,null,"Водоотведение:",null,null,null,null,null,null,null,null,null,null,null,"Лифтовое оборудование",null,null,null,null,null,null,null,null,null,null,null,"Фундамент  ",null,null,null,null,null,"Подвалы",null,null,null,null,null,null,"Стены и перегородки",null,null,null,null,null,"Перекрытия и покрытия",null,null,null,null,null,"Крыша, кровля",null,null,null,null,null,"Фасад ",null,null,null,null,null,"Колонны и столбы",null,null,null,null,null,null,"Балки (ригели) перекрытий и покрытий",null,null,null,null,null,null,"Лестницы ",null,null,null,null,null,null,"Внутренняя отделка",null,null,null,null,null," Полы помещений",null,null,null,null,null,"Оконные и дверные заполнения помещений",null,null,null,null,null,"Мусоропроводы"]
[null,null,null,null,null,null,null,null,null,null,null,null,null,null,null,null,null,null,null,null,null,null,null,null,null,null,null,"Количество этажей, наименьшее (если дом состоит из нескольких разноэтажных секций)\n(целое число больше ноля)","Количество этажей, наибольшее\n(целое число больше ноля)",null,null,null,null,null,null,null,null,null,"Лестничные марши и площадки (площадь, кв.м.)\n(целое или дробное число)","Коридоры мест общего пользования (площадь, кв.м.)\n(целое или дробное число)","Техническое подполье (технический подвал) (площадь, кв.м.)\n(целое или дробное число)","Технический этаж (между этажами) (площадь, кв.м.)\n(целое или дробное число)","Технические чердаки (площадь, кв.м.)\n(целое или дробное число)","Иные технические помещения (мастерские, электрощитовые, водомерные узлы и др.) (площадь, кв.м.)\n(целое или дробное число)","Площадь убежищ\n(целое или дробное число)","Площадь подвалов\n(целое или дробное число)","Площадь чердаков\n(целое или дробное число)","Количество металлических дверей в убежища\n(целое или дробное число)","Площадь прочих помещений общего пользования (красные уголки, клубы, детские комнаты, помещения консьержей, колясочные и т.д.)\n(целое или дробное число)",null,null,null,"Общее количество квартир и (или) помещений в общежитии\n(целое число больше ноля)","Характеристика помещений (квартир) ",null,null,null,null,null,null,null,null,null,null,null,null,null,null,null,null,null,null,null,null,null,"Общее количество\n(целое число)","Количество помещений, находящихся в частной собственности\n(целое число)","Количество помещений, находящихся в муниципальной собственности\n(целое число)","Количество помещений, находящихся в государственной собственности\n(целое число)","Количество встроенных (пристроенных)  помещений\n(целое число)","Общая площадь встроенных (пристроенных) помещений\n(целое или дробное число)","Класс энергетической эффективности многоквартирного дома \n(A, B, B+, B++, C, D, E)","Дата проведения энергетического обследования",null,null,null,null,null,null,null,null,null,null,null,null,"Оказывается ли услуга  (да/нет)","Наименование лица","Реквизиты контракта (договора) на оказание услуг","ОГРН","КПП","ИНН","Телефон, факс","Адрес фактический","Адрес юридический","Официальный сайт в сети интернет","Адрес электронной почты","Дата начала обслуживания дома","Наименование лица ","Реквизиты контракта (договора) на оказание услуг","ОГРН","КПП","ИНН","Телефон, факс","Адрес фактический","Адрес юридический","Официальный сайт в сети интернет","Адрес электронной почты","Дата начала обслуживания дома","Оказывается ли услуга  (да/нет)","Наименование лица","Реквизиты контракта (договора) на оказание услуг","ОГРН","КПП","ИНН","Телефон, факс","Адрес фактический","Адрес юридический","Официальный сайт в сети интернет","Адрес электронной почты","Дата начала обслуживания дома","Оказывается ли услуга  (да/нет)","Наименование лица","Реквизиты контракта (договора) на оказание услуг","ОГРН","КПП","ИНН","Телефон, факс","Адрес фактический","Адрес юридический","Официальный сайт в сети интернет","Адрес электронной почты","Дата начала обслуживания дома","Оказывается ли услуга  (да/нет)","Наименование лица","Реквизиты контракта (договора) на оказание услуг","ОГРН","КПП","ИНН","Телефон, факс","Адрес фактический","Адрес юридический","Официальный сайт в сети интернет","Адрес электронной почты","Дата начала обслуживания дома","Оказывается ли услуга  (да/нет)","Наименование лица","Реквизиты контракта (договора) на оказание услуг","ОГРН","КПП","ИНН","Телефон, факс","Адрес фактический","Адрес юридический","Официальный сайт в сети интернет","Адрес электронной почты","Дата начала обслуживания дома","Предусмотрено ли лифтовое оборудование в доме\n (да/нет)","Наименование лица","Реквизиты Договора на техническое обслуживание ","ОГРН","КПП","ИНН","Телефон, факс","Адрес фактический","Адрес юридический ","Официальный сайт в сети интернет","Адрес электронной почты","Дата начала обслуживания дома","капитальный ремонт",null,"технический осмотр",null,null,null,"Наличие элемента  (да/нет)","капитальный ремонт",null,"технический осмотр",null,null,null,{"$f":"FW4","v":"капитальный ремонт"},null,"технический осмотр",null,null,null,{"$f":"GJ4","v":"капитальный ремонт"},null,{"$f":"GL4","v":"технический осмотр"},null,null,null,"капитальный ремонт",null,"технический осмотр",null,null,null,"капитальный ремонт",null,"технический осмотр",null,null,null,"Наличие элемента  (да/нет)","капитальный ремонт",null,"технический осмотр",null,null,null,"Наличие элемента  (да/нет)","капитальный ремонт",null,"технический осмотр",null,null,null,"Наличие элемента  (да/нет)","капитальный ремонт",null,"технический осмотр",null,null,null,"капитальный ремонт",null,"технический осмотр",null,null,null,"капитальный ремонт",null,"технический осмотр",null,null,null,"капитальный ремонт",null,"технический осмотр",null,null,null,"Наличие элемента (да/нет)","капитальный ремонт"]
[null,null,null,null,"Наименование населенного пункта (город, село, поселок, деревня, военный городок)","Микрорайон","Квартал","Улица, переулок, тупик, набережная, проезд, проспект, бульвар","Номер дома\n(целое число)","Литера","Дробный адрес",null,null,"Владение\n(целое число)","Номер корпуса\n(целое число)","Литера корпуса","Строение\n(целое число)","Почтовый индекс\n(шестизначное число без пробелов)",null,null,null,null,null,null,null,null,null,null,null,null,null,null,null,null,null,null,null,null,null,null,null,null,null,null,null,null,null,null,null,null,null,null,null,"Отдельные квартиры",null,null,null,null,null,null,null,null,null,"Квартиры коммунального заселения",null,null,null,null,null,null,null,null,"Общежития ",null,null,null,null,null,null,null,null,null,null,null,null,null,null,null,null,null,null,null,null,null,null,null,null,null,null,null,null,null,null,null,null,null,null,null,null,null,null,null,null,null,null,null,null,null,null,null,null,null,null,null,null,null,null,null,null,null,null,null,null,null,null,null,null,null,null,null,null,null,null,null,null,null,null,null,null,null,null,null,null,null,null,null,null,null,null,null,null,null,null,null,null,null,null,null,null,null,null,null,null,null,null,null,null,null,"год проведения последнего капитального ремонта\n(четырехзначное число)","перечень выполненных работ","дата и номер акта последнего проведенного осмотра","процент износа по результатам последнего проведенного осмотра\n(целое число от ноля до ста)","результаты последнего проведенного осмотра","сведения об организации или физическом  лице, проводившим осмотр",null,"год проведения последнего капитального ремонта\n(четырехзначное число)","перечень выполненных работ","дата и номер акта последнего проведенного осмотра","процент износа по результатам последнего проведенного осмотра\n(целое число от ноля до ста)","результаты последнего проведенного осмотра","сведения об организации или физическом  лице, проводившим осмотр","год проведения последнего капитального ремонта\n(четырехзначное число)","перечень выполненных работ","дата и номер акта последнего проведенного осмотра","процент износа по результатам последнего проведенного осмотра\n(целое число от ноля до ста)","результаты последнего проведенного осмотра","сведения об организации или физическом  лице, проводившим осмотр","год проведения последнего капитального ремонта\n(четырехзначное число)","перечень выполненных работ","дата и номер акта последнего проведенного осмотра","процент износа по результатам последнего проведенного осмотра\n(целое число от ноля до ста)","результаты последнего проведенного осмотра","сведения об организации или физическом  лице, проводившим осмотр","год проведения последнего капитального ремонта\n(четырехзначное число)","перечень выполненных работ","дата и номер акта последнего проведенного осмотра","процент износа по результатам последнего проведенного осмотра\n(целое число от ноля до ста)","результаты последнего проведенного осмотра","сведения об организации или физическом  лице, проводившим осмотр","год проведения последнего капитального ремонта\n(четырехзначное число)","перечень выполненных работ","дата и номер акта последнего проведенного осмотра","процент износа по результатам последнего проведенного осмотра\n(целое число от ноля до ста)","результаты последнего проведенного осмотра","сведения об организации или физическом  лице, проводившим осмотр",null,"год проведения последнего капитального ремонта\n(четырехзначное число)","перечень выполненных работ","дата и номер акта последнего проведенного осмотра","процент износа по результатам последнего проведенного осмотра\n(целое число от ноля до ста)","результаты последнего проведенного осмотра","сведения об организации или физическом  лице, проводившим осмотр",null,"год проведения последнего капитального ремонта\n(четырехзначное число)","перечень выполненных работ","дата и номер акта последнего проведенного осмотра","процент износа по результатам последнего проведенного осмотра\n(целое число от ноля до ста)","результаты последнего проведенного осмотра","сведения об организации или физическом  лице, проводившим осмотр",null,"год проведения последнего капитального ремонта\n(четырехзначное число)","перечень выполненных работ","дата и номер акта последнего проведенного осмотра","процент износа по результатам последнего проведенного осмотра\n(целое число от ноля до ста)","результаты последнего проведенного осмотра\n","сведения об организации или физическом  лице, проводившим осмотр\n","год проведения последнего капитального ремонта\n(четырехзначное число)","перечень выполненных работ","дата и номер акта последнего проведенного осмотра","процент износа по результатам последнего проведенного осмотра\n(целое число от ноля до ста)","результаты последнего проведенного осмотра","сведения об организации или физическом  лице, проводившим осмотр","год проведения последнего капитального ремонта\n(четырехзначное число)","перечень выполненных работ","дата и номер акта последнего проведенного осмотра","процент износа по результатам последнего проведенного осмотра\n(целое число от ноля до ста)","результаты последнего проведенного осмотра","сведения об организации или физическом  лице, проводившим осмотр","год проведения последнего капитального ремонта\n(четырехзначное число)","перечень выполненных работ","дата и номер акта последнего проведенного осмотра","процент износа по результатам последнего проведенного осмотра\n(целое число от ноля до ста)","результаты последнего проведенного осмотра","сведения об организации или физическом  лице, проводившим осмотр",null,"год проведения последнего капитального ремонта"]
[null,null,null,null,null,null,null,null,null,null,"Дробный номер дома\n(целое число)","Литера дробного номера","Дробная улица (переулок, бульвар и т.д.)",null,null,null,null,null,null,null,null,null,null,null,null,null,null,null,null,null,null,null,null,null,null,null,null,null,null,null,null,null,null,null,null,null,null,null,null,"Этаж","Номер помещения","Назначение помещения",null,"Количество квартир находящихся в частной собственности\n(целое число)","Количество квартир находящихся в муниципальной собственности\n(целое число)","Количество квартир находящихся в государственной собственности\n(целое число)","1-комнатные\n(целое число)","2-комнатные\n(целое число)","3-комнатные\n(целое число)","4-комнатные\n(целое число)","5-комнатные\n(целое число)","6-комнатные\n(целое число)","7 и более комнат\n(целое число)","2-комнатные\n(целое число)","3-комнатные\n(целое число)","4-комнатные\n(целое число)","5-комнатные\n(целое число)","6-комнатные\n(целое число)","7 и более комнат\n(целое число)","Количество комнат в коммунальных квартирах, находящихся в частной собственности\n(целое число)","Количество комнат в коммунальных квартирах, находящихся в муниципальной собственности\n(целое число)","Количество комнат в коммунальных квартирах, находящихся в государственной собственности\n(целое число)","Количество комнат в общежитии\n(целое число)","Общая площадь помещений\n(целое или дробное число)","Жилая площадь помещений\n(целое или дробное число)"]
[1,2,3,4,5,6,7,8,9,10,11,12,13,14,15,16,17,18,19,20,21,22,23,24,25,26,27,28,29,30,31,32,33,34,35,36,37,38,39,40,41,42,43,44,45,46,47,48,49,50,51,52,53,54,55,56,57,58,59,60,61,62,63,64,65,66,67,68,69,70,71,72,73,74,75,76,77,78,79,80,81,82,83,84,85,86,87,88,89,90,91,92,93,94,95,96,97,98,99,100,101,102,103,104,105,106,107,108,109,110,111,112,113,114,115,116,117,118,119,120,121,122,123,124,125,126,127,128,129,130,131,132,133,134,135,136,137,138,139,140,141,142,143,144,145,146,147,148,149,150,151,152,153,154,155,156,157,158,159,160,161,162,163,164,165,166,167,168,169,170,171,172,173,174,175,176,177,178,179,180,181,182,183,184,185,186,187,188,189,190,191,192,193,194,195,196,197,198,199,200,201,202,203,204,205,206,207,208,209,210,211,212,213,214,215,216,217,218,219,220,221,222,223,224,225,226,227,228,229,230,231,232,233,234,235,236,237,238,239,240,241,242,243,244,245,246,247,248,249,250,251,252,253,254,255,256]
[null,null,null,null,null,null,null,null,null,null,null,null,null,null,null,null,null,null,null,null,null,null,null,null,null,null,null,null,null,null,null,null,null,null,null,null,null,null,null,null,null,null,null,null,null,null,null,null,null,null,null,null,null,null,null,null,null,null,null,null,null,null,null,null,null,null,null,null,null,null,null,null,null,null,null,null,null,null,null,null,null,null,null,null,null,null,null,null,null,null,null,null,null,null,null,null,null,null,null,null,null,null,null,null,null,null,null,null,null,null,null,null,null,null,null,null,null,null,null,null,null,null,null,null,null,null,null,null,null,null,null,null,null,null,null,null,null,null,null,null,null,null,null,null,null,null,null,null,null,null,null,null,null,null,null,null,null,null,null,null,null,null,null,null,null,null,null,null,null,null,null,null,null,null,null,null,null,null,null,null,null,"расчёт произведён УК на основе методических рекомендаций",null,null,null,null,null,null,"расчёт произведён УК на основе методических рекомендаций",null,null,null,null,null,"расчёт произведён УК на основе методических рекомендаций",null,null,null,null,null,"расчёт произведён УК на основе методических рекомендаций",null,null,null,null,null,"расчёт произведён УК на основе методических рекомендаций",null,null,null,null,null,"расчёт произведён УК на основе методических рекомендаций",null,null,null,null,null,null,null,null,null,null,null,null,null,"расчёт произведён УК на основе методических рекомендаций",null,null,null,null,null,null,"расчёт произведён УК на основе методических рекомендаций",null,null,null,null,null,"расчёт произведён УК на основе методических рекомендаций",null,null,null,null,null,"расчёт произведён УК на основе методических рекомендаций",null,null,null,null,null,"расчёт произведён УК на основе методических рекомендаций"]
[1,"м","Пушкинский м.р.","Пушкино г.п.","Пушкино",null,"НЕТ","Московский проспект",44,"НЕТ",null,"НЕТ","НЕТ",null,null,"НЕТ",null,141205,null,2967,2005,"монолитно / кирпичный","свайное основание","рулонная по ж/б плитам","кирпич",3,3,12,16,2,6,{"$f":"AG9*2","v":548},{"$f":"BA9","v":274},null,"Нет",null,null,22754.5,3027.7,null,null,644.20000000000005,null,null,null,null,null,null,null,null,null,null,274,274,null,null,115,74,74,null,11,null,null,null,null,null,null,null,null,null,null,null,null,null,null,8,8,null,null,null,1855.3,null,null,"постановление Главы Пушкинского района №2184","Кальный В.К,","ООО УК \"ЭнергоСтройСервисЖильё\" (ООО УК \"ЭССЖ\")",1035007557914,503801001,5038040315,"8-496-580-02-45","М.обл.г.Пушкино,Московский проспект д.44","М.обл.г.Пушкино,Московский проспект д.44","http://essgh.ru","uk-essgh@ya.ru","2005-08-05","Да","ОАО \"Пушкинская Теплосеть\"","№48 от 01.06.2006",1125038000306,503801001,5038088317,"8-496-535-85-05","141205 М.обл.г.Пушкино пр.И.Арманд д.4","141205 М.обл.г.Пушкино пр.И.Арманд д.4",null,"teploset-p@mail.ru","момента ввода в эксплуатацию","ОАО \"Мосэнергосбыт\"",null,null,99745001,7736520080,"8-496-535-05-05","141200 М.обл. г.Пушкино ул.Островского д.22","117312 г.Москва ул.Вавилова д.9",null,"bazaleyin@mosenergosbyt.ru","с даты ввода в эксплуатацию","нет",null,null,null,null,null,null,null,null,null,null,null,"Да","ОАО \"Пушкинская Теплосеть\"","№48 от 01.06.2006",1125038000306,503801001,5038088317,"8-496-535-85-05","141205 М.обл.г.Пушкино пр.И.Арманд д.4","141205 М.обл.г.Пушкино пр.И.Арманд д.4",null,"teploset-p@mail.ru","момента ввода в эксплуатацию","Да","МУП \"Пушкинский Водоканал\"\"",null,1075038013159,503801001,5038057693,"8-496-532-09-05","141200 М.обл.г.Пушкино ул.Учинская д.16","141200 М.обл.г.Пушкино ул.Учинская д.16",null,"push_vodokanal@mail.ru","с момента ввода в эксплуатацию","Да","МУП \"Пушкинский Водоканал\"\"",null,1075038013159,503801001,5038057693,"8-496-532-09-05","141200 М.обл.г.Пушкино ул.Учинская д.16","141200 М.обл.г.Пушкино ул.Учинская д.16",null,"push_vodokanal@mail.ru","с момента ввода в эксплуатацию","да","нет","нет","нет","нет","нет","нет","нет","нет","нет","нет",2005,0,null,"2014-08-01",9,"паспорт готовности дома","УК ООО \"ЭССЖ\"","Нет",null,null,null,null,null,null,0,null,"2014-08-01",9,"паспорт готовности дома","УК ООО \"ЭССЖ\"",0,null,"2014-08-01",9,"паспорт готовности дома","УК ООО \"ЭССЖ\"",0,null,"2014-08-01",9,"паспорт готовности дома","УК ООО \"ЭССЖ\"",0,null,"2014-08-01",9,"паспорт готовности дома","УК ООО \"ЭССЖ\"","Нет",null,null,null,null,null,null,"Нет",null,null,null,null,null,null,"Да",0,null,"2014-08-01",9,"паспорт готовности дома","УК ООО \"ЭССЖ\"",0,null,"2014-08-01",9,"паспорт готовности дома","УК ООО \"ЭССЖ\"",0,null,"2014-08-01",9,"паспорт готовности дома","УК ООО \"ЭССЖ\"",0,null,"2014-08-01",{"$f":"2014-U9","v":9},"паспорт готовности дома","УК ООО \"ЭССЖ\"","Нет",0]
[2,"м","Пушкинский м.р.","Пушкино г.п.","Пушкино",null,"НЕТ","Розанова проезд",3,"НЕТ",null,"НЕТ","НЕТ",null,null,"НЕТ",null,141205,null,980,2006,"монолитно / кирпичный","монолитная ж.б плита","рулонная по ж/б плитам","кирпич",2,2,null,9,null,2,{"$f":"AG10*2","v":252},{"$f":"BA10","v":126},null,"Нет",null,null,9027,982.2,null,942.9,null,null,null,null,942.9,null,null,null,null,null,null,126,126,null,null,57,53,15,1,null,null,null,null,null,null,null,null,null,null,null,null,null,null,null,null,null,null,null,null,null,null,null,"постановление Главы Пушкинского района №3367","Кальный В.К,","ООО УК \"ЭнергоСтройСервисЖильё\" (ООО УК \"ЭССЖ\")",1035007557914,503801001,5038040315,"8-496-580-02-45","М.обл.г.Пушкино,Московский проспект д.44","М.обл.г.Пушкино,Московский проспект д.44","http://essgh.ru","uk-essgh@ya.ru","2005-12-21","Да","ОАО \"Пушкинская Теплосеть\"","№48 от 01.06.2006",1125038000306,503801001,5038088317,"8-496-535-85-05","141205 М.обл.г.Пушкино пр.И.Арманд д.4","141205 М.обл.г.Пушкино пр.И.Арманд д.4",null,"teploset-p@mail.ru","момента ввода в эксплуатацию","ОАО \"Мосэнергосбыт\"",null,null,99745001,7736520080,"8-496-535-05-05","141200 М.обл. г.Пушкино ул.Островского д.22","117312 г.Москва ул.Вавилова д.9",null,"bazaleyin@mosenergosbyt.ru","с даты ввода в эксплуатацию","нет",null,null,null,null,null,null,null,null,null,null,null,"Да","ОАО \"Пушкинская Теплосеть\"","№48 от 01.06.2006",1125038000306,503801001,5038088317,"8-496-535-85-05","141205 М.обл.г.Пушкино пр.И.Арманд д.4","141205 М.обл.г.Пушкино пр.И.Арманд д.4",null,"teploset-p@mail.ru","момента ввода в эксплуатацию","Да","МУП \"Пушкинский Водоканал\"\"",null,1075038013159,503801001,5038057693,"8-496-532-09-05","141200 М.обл.г.Пушкино ул.Учинская д.16","141200 М.обл.г.Пушкино ул.Учинская д.16",null,"push_vodokanal@mail.ru","с момента ввода в эксплуатацию","Да","МУП \"Пушкинский Водоканал\"\"",null,1075038013159,503801001,5038057693,"8-496-532-09-05","141200 М.обл.г.Пушкино ул.Учинская д.16","141200 М.обл.г.Пушкино ул.Учинская д.16",null,"push_vodokanal@mail.ru","с момента ввода в эксплуатацию","да","нет","нет","нет","нет","нет","нет","нет","нет","нет","нет",2006,0,null,"2014-08-01",8,"паспорт готовности дома","УК ООО \"ЭССЖ\"","Да",0,null,"2014-08-01",8,"паспорт готовности дома","УК ООО \"ЭССЖ\"",0,null,"2014-08-01",8,"паспорт готовности дома","УК ООО \"ЭССЖ\"",0,null,"2014-08-01",8,"паспорт готовности дома","УК ООО \"ЭССЖ\"",0,null,"2014-08-01",8,"паспорт готовности дома","УК ООО \"ЭССЖ\"",0,null,"2014-08-01",8,"паспорт готовности дома","УК ООО \"ЭССЖ\"","Нет",null,null,null,null,null,null,"Нет",null,null,null,null,null,null,"Да",0,null,"2014-08-01",8,"паспорт готовности дома","УК ООО \"ЭССЖ\"",0,null,"2014-08-01",8,"паспорт готовности дома","УК ООО \"ЭССЖ\"",0,null,"2014-08-01",8,"паспорт готовности дома","УК ООО \"ЭССЖ\"",0,null,"2014-08-01",{"$f":"2014-U10","v":8},"паспорт готовности дома","УК ООО \"ЭССЖ\"","Нет",0]
[3,"м","Пушкинский м.р.","Пушкино г.п.","Пушкино","Серебрянка","НЕТ",null,48,"НЕТ",null,"НЕТ","НЕТ",null,1,"НЕТ",null,141202,"223:066:27577",29911,2010,"монолитно / кирпичный","сборный ж/б","рулонная по ж/б плитам","кирпич",3,3,null,14,null,6,330,165,null,"Нет",null,null,15173.9,2373.9,null,971.5,null,null,null,null,971.5,null,null,null,null,null,null,165,163,2,null,73,78,8,6,null,null,null,null,null,null,null,null,null,null,null,null,null,null,null,10,10,null,null,null,1404,null,null,"договор с ТСЖ","Кальный В.К,","ООО УК \"ЭнергоСтройСервисЖильё\" (ООО УК \"ЭССЖ\")",1035007557914,503801001,5038040315,"8-496-580-02-45","М.обл.г.Пушкино,Московский проспект д.44","М.обл.г.Пушкино,Московский проспект д.44","http://essgh.ru","uk-essgh@ya.ru","2011-10-11","Да","ОАО \"Пушкинская Теплосеть\"","№48 от 01.06.2006",1125038000306,503801001,5038088317,"8-496-535-85-05","141205 М.обл.г.Пушкино пр.И.Арманд д.4","141205 М.обл.г.Пушкино пр.И.Арманд д.4",null,"teploset-p@mail.ru","момента ввода в эксплуатацию","ОАО \"Мосэнергосбыт\"",null,null,99745001,7736520080,"8-496-535-05-05","141200 М.обл. г.Пушкино ул.Островского д.22","117312 г.Москва ул.Вавилова д.9",null,"bazaleyin@mosenergosbyt.ru","с даты ввода в эксплуатацию","нет",null,null,null,null,null,null,null,null,null,null,null,"Да","ОАО \"Пушкинская Теплосеть\"","№48 от 01.06.2006",1125038000306,503801001,5038088317,"8-496-535-85-05","141205 М.обл.г.Пушкино пр.И.Арманд д.4","141205 М.обл.г.Пушкино пр.И.Арманд д.4",null,"teploset-p@mail.ru","момента ввода в эксплуатацию","Да","МУП \"Пушкинский Водоканал\"\"",null,1075038013159,503801001,5038057693,"8-496-532-09-05","141200 М.обл.г.Пушкино ул.Учинская д.16","141200 М.обл.г.Пушкино ул.Учинская д.16",null,"push_vodokanal@mail.ru","с момента ввода в эксплуатацию","Да","МУП \"Пушкинский Водоканал\"\"",null,1075038013159,503801001,5038057693,"8-496-532-09-05","141200 М.обл.г.Пушкино ул.Учинская д.16","141200 М.обл.г.Пушкино ул.Учинская д.16",null,"push_vodokanal@mail.ru","с момента ввода в эксплуатацию","да","нет","нет","нет","нет","нет","нет","нет","нет","нет","нет",2010,0,null,"2014-08-01",4,"паспорт готовности дома","УК ООО \"ЭССЖ\"","Да",0,null,"2014-08-01",4,"паспорт готовности дома","УК ООО \"ЭССЖ\"",0,null,"2014-08-01",4,"паспорт готовности дома","УК ООО \"ЭССЖ\"",0,null,"2014-08-01",4,"паспорт готовности дома","УК ООО \"ЭССЖ\"",0,null,"2014-08-01",4,"паспорт готовности дома","УК ООО \"ЭССЖ\"",0,null,"2014-08-01",4,"паспорт готовности дома","УК ООО \"ЭССЖ\"","Нет",null,null,null,null,null,null,"Нет",null,null,null,null,null,null,"Да",0,null,"2014-08-01",4,"паспорт готовности дома","УК ООО \"ЭССЖ\"",0,null,"2014-08-01",4,"паспорт готовности дома","УК ООО \"ЭССЖ\"",0,null,"2014-08-01",4,"паспорт готовности дома","УК ООО \"ЭССЖ\"",0,null,"2014-08-01",4,"паспорт готовности дома","УК ООО \"ЭССЖ\"","Нет",0]
[4,"м","Пушкинский м.р.","Пушкино г.п.","Пушкино","Серебрянка","НЕТ",null,48,"НЕТ",null,"НЕТ","НЕТ",null,2,"НЕТ",null,141202,"50:13:070202:0085",1240,2013,"монолитно / кирпичный","монолитная ж/б плита","рулонная по ж/б плитам","кирпич",4,4,14,22,4,10,667,354,null,"Нет",null,null,35930,null,null,null,null,null,null,null,null,null,null,null,null,null,null,354,344,10,null,183,116,38,17,null,null,null,null,null,null,null,null,null,null,null,null,null,null,null,null,null,null,null,null,null,null,null,"Договор с Застройщиком","Кальный В.К,","ООО УК \"ЭнергоСтройСервисЖильё\" (ООО УК \"ЭССЖ\")",1035007557914,503801001,5038040315,"8-496-580-02-45","М.обл.г.Пушкино,Московский проспект д.44","М.обл.г.Пушкино,Московский проспект д.44","http://essgh.ru","uk-essgh@ya.ru","2014-06-01","Да","ОАО \"Пушкинская Теплосеть\"","№48 от 01.06.2006",1125038000306,503801001,5038088317,"8-496-535-85-05","141205 М.обл.г.Пушкино пр.И.Арманд д.4","141205 М.обл.г.Пушкино пр.И.Арманд д.4",null,"teploset-p@mail.ru","момента ввода в эксплуатацию","ОАО \"Мосэнергосбыт\"",null,null,99745001,7736520080,"8-496-535-05-05","141200 М.обл. г.Пушкино ул.Островского д.22","117312 г.Москва ул.Вавилова д.9",null,"bazaleyin@mosenergosbyt.ru","с даты ввода в эксплуатацию","нет",null,null,null,null,null,null,null,null,null,null,null,"Да","ОАО \"Пушкинская Теплосеть\"","№48 от 01.06.2006",1125038000306,503801001,5038088317,"8-496-535-85-05","141205 М.обл.г.Пушкино пр.И.Арманд д.4","141205 М.обл.г.Пушкино пр.И.Арманд д.4",null,"teploset-p@mail.ru","момента ввода в эксплуатацию","Да","МУП \"Пушкинский Водоканал\"\"",null,1075038013159,503801001,5038057693,"8-496-532-09-05","141200 М.обл.г.Пушкино ул.Учинская д.16","141200 М.обл.г.Пушкино ул.Учинская д.16",null,"push_vodokanal@mail.ru","с момента ввода в эксплуатацию","Да","МУП \"Пушкинский Водоканал\"\"",null,1075038013159,503801001,5038057693,"8-496-532-09-05","141200 М.обл.г.Пушкино ул.Учинская д.16","141200 М.обл.г.Пушкино ул.Учинская д.16",null,"push_vodokanal@mail.ru","с момента ввода в эксплуатацию","да","нет","нет","нет","нет","нет","нет","нет","нет","нет","нет",2013,0,null,"2014-08-01",1,"паспорт готовности дома","УК ООО \"ЭССЖ\"","Да",0,null,"2014-08-01",1,"паспорт готовности дома","УК ООО \"ЭССЖ\"",0,null,"2014-08-01",1,"паспорт готовности дома","УК ООО \"ЭССЖ\"",0,null,"2014-08-01",1,"паспорт готовности дома","УК ООО \"ЭССЖ\"",0,null,"2014-08-01",1,"паспорт готовности дома","УК ООО \"ЭССЖ\"",0,null,"2014-08-01",1,"паспорт готовности дома","УК ООО \"ЭССЖ\"","Нет",null,null,null,null,null,null,"Нет",null,null,null,null,null,null,"Да",0,null,"2014-08-01",1,"паспорт готовности дома","УК ООО \"ЭССЖ\"",0,null,"2014-08-01",1,"паспорт готовности дома","УК ООО \"ЭССЖ\"",0,null,"2014-08-01",1,"паспорт готовности дома","УК ООО \"ЭССЖ\"",0,null,"2014-08-01",1,"паспорт готовности дома","УК ООО \"ЭССЖ\"","Нет",0]
[5,"м","Пушкинский м.р.","Пушкино г.п.","Пушкино","Серебрянка","НЕТ",null,49,"НЕТ",null,"НЕТ","НЕТ",null,null,"НЕТ",null,141202,"233:066-26807",1184.0999999999999,2006,"монолитно / кирпичный","сборный ж/б","рулонная по ж/б плитам","кирпич",3,3,null,11,null,3,240,120,null,"Нет",null,null,9668.5,1256.2,null,706.6,778.9,null,null,null,706.6,null,null,null,null,null,null,120,116,6,null,40,60,20,null,null,null,null,null,null,null,null,null,null,null,null,null,null,null,null,null,null,null,null,null,null,null,null,"Договор с ТСЖ","Кальный В.К,","ООО УК \"ЭнергоСтройСервисЖильё\" (ООО УК \"ЭССЖ\")",1035007557914,503801001,5038040315,"8-496-580-02-45","М.обл.г.Пушкино,Московский проспект д.44","М.обл.г.Пушкино,Московский проспект д.44","http://essgh.ru","uk-essgh@ya.ru","2006-08-06","Да","ОАО \"Пушкинская Теплосеть\"","№48 от 01.06.2006",1125038000306,503801001,5038088317,"8-496-535-85-05","141205 М.обл.г.Пушкино пр.И.Арманд д.4","141205 М.обл.г.Пушкино пр.И.Арманд д.4",null,"teploset-p@mail.ru","момента ввода в эксплуатацию","ОАО \"Мосэнергосбыт\"",null,null,99745001,7736520080,"8-496-535-05-05","141200 М.обл. г.Пушкино ул.Островского д.22","117312 г.Москва ул.Вавилова д.9",null,"bazaleyin@mosenergosbyt.ru","с даты ввода в эксплуатацию","нет",null,null,null,null,null,null,null,null,null,null,null,"Да","ОАО \"Пушкинская Теплосеть\"","№48 от 01.06.2006",1125038000306,503801001,5038088317,"8-496-535-85-05","141205 М.обл.г.Пушкино пр.И.Арманд д.4","141205 М.обл.г.Пушкино пр.И.Арманд д.4",null,"teploset-p@mail.ru","момента ввода в эксплуатацию","Да","МУП \"Пушкинский Водоканал\"\"",null,1075038013159,503801001,5038057693,"8-496-532-09-05","141200 М.обл.г.Пушкино ул.Учинская д.16","141200 М.обл.г.Пушкино ул.Учинская д.16",null,"push_vodokanal@mail.ru","с момента ввода в эксплуатацию","Да","МУП \"Пушкинский Водоканал\"\"",null,1075038013159,503801001,5038057693,"8-496-532-09-05","141200 М.обл.г.Пушкино ул.Учинская д.16","141200 М.обл.г.Пушкино ул.Учинская д.16",null,"push_vodokanal@mail.ru","с момента ввода в эксплуатацию","да","нет","нет","нет","нет","нет","нет","нет","нет","нет","нет",2006,0,null,"2014-08-01",8,"паспорт готовности дома","УК ООО \"ЭССЖ\"","Да",0,null,"2014-08-01",8,"паспорт готовности дома","УК ООО \"ЭССЖ\"",0,null,"2014-08-01",8,"паспорт готовности дома","УК ООО \"ЭССЖ\"",0,null,"2014-08-01",8,"паспорт готовности дома","УК ООО \"ЭССЖ\"",0,null,"2014-08-01",8,"паспорт готовности дома","УК ООО \"ЭССЖ\"",0,null,"2014-08-01",8,"паспорт готовности дома","УК ООО \"ЭССЖ\"","Нет",null,null,null,null,null,null,"Нет",null,null,null,null,null,null,"Да",0,null,"2014-08-01",8,"паспорт готовности дома","УК ООО \"ЭССЖ\"",0,null,"2014-08-01",8,"паспорт готовности дома","УК ООО \"ЭССЖ\"",0,null,"2014-08-01",8,"паспорт готовности дома","УК ООО \"ЭССЖ\"",0,null,"2014-08-01",8,"паспорт готовности дома","УК ООО \"ЭССЖ\"","Нет",0]
[6,"м","Пушкинский м.р.","Пушкино г.п.","Пушкино","Заветы Ильича","НЕТ","Степана Разина улица",3,"НЕТ",null,"НЕТ","НЕТ",null,null,"НЕТ",null,141254,null,626.9,2006,"кирпичный","ж/б. бетон","мягкая плоская совмещенная","кирпич",1,1,null,9,null,1,126,63,null,"Нет",null,null,4436.7,474.8,null,394.5,401.4,null,null,null,394.5,null,null,null,null,null,null,63,63,null,null,37,26,null,null,null,null,null,null,null,null,null,null,null,null,null,null,null,null,null,12,12,null,null,null,839.5,null,null,"Решение собственников","Кальный В.К,","ООО УК \"ЭнергоСтройСервисЖильё\" (ООО УК \"ЭССЖ\")",1035007557914,503801001,5038040315,"8-496-580-02-45","М.обл.г.Пушкино,Московский проспект д.44","М.обл.г.Пушкино,Московский проспект д.44","http://essgh.ru","uk-essgh@ya.ru","2013-09-07","да","ОАО \"Пушкинская Теплосеть\"","№48 от 01.06.2006",1125038000306,503801001,5038088317,"8-496-535-85-05","141205 М.обл.г.Пушкино пр.И.Арманд д.4","141205 М.обл.г.Пушкино пр.И.Арманд д.4",null,"teploset-p@mail.ru","момента ввода в эксплуатацию","ОАО \"Мосэнергосбыт\"",null,null,99745001,7736520080,"8-496-535-05-05","141200 М.обл. г.Пушкино ул.Островского д.22","117312 г.Москва ул.Вавилова д.9",null,"bazaleyin@mosenergosbyt.ru","с даты ввода в эксплуатацию","Да","Филиал ГУП МО \"Мособлгаз\" Мытищинский межрайонный трест газового хозяйства\"",null,null,502902002,5000001317,"8-495-583-23-50","141002 М.обл. г.Мытищи ул.Белобородова д.6","141002 М.обл. г.Мытищи ул.Белобородова д.6","www.mytishchi.mosoblgaz.ru","mytischchi@mosoblgaz.ru","с даты ввода в эксплуатацию","Да","ОАО \"Пушкинская Теплосеть\"","№48 от 01.06.2006",1125038000306,503801001,5038088317,"8-496-535-85-05","141205 М.обл.г.Пушкино пр.И.Арманд д.4","141205 М.обл.г.Пушкино пр.И.Арманд д.4",null,"teploset-p@mail.ru","момента ввода в эксплуатацию","Да","МУП \"Пушкинский Водоканал\"\"",null,1075038013159,503801001,5038057693,"8-496-532-09-05","141200 М.обл.г.Пушкино ул.Учинская д.16","141200 М.обл.г.Пушкино ул.Учинская д.16",null,"push_vodokanal@mail.ru","с момента ввода в эксплуатацию","Да","МУП \"Пушкинский Водоканал\"\"",null,1075038013159,503801001,5038057693,"8-496-532-09-05","141200 М.обл.г.Пушкино ул.Учинская д.16","141200 М.обл.г.Пушкино ул.Учинская д.16",null,"push_vodokanal@mail.ru","с момента ввода в эксплуатацию","да","нет","нет","нет","нет","нет","нет","нет","нет","нет","нет",2013,0,null,"2014-09-01",8,"паспорт готовности дома","УК ООО \"ЭССЖ\"","Нет",null,null,null,null,null,null,0,null,"2014-09-01",8,"паспорт готовности дома","УК ООО \"ЭССЖ\"",0,null,"2014-09-01",8,"паспорт готовности дома","УК ООО \"ЭССЖ\"",0,null,"2014-09-01",8,"паспорт готовности дома","УК ООО \"ЭССЖ\"",0,null,"2014-09-01",8,"паспорт готовности дома","УК ООО \"ЭССЖ\"","Нет",null,null,null,null,null,null,"Нет",null,null,null,null,null,null,"Да",0,null,"2014-09-01",8,"паспорт готовности дома","УК ООО \"ЭССЖ\"",0,null,"2014-09-01",8,"паспорт готовности дома","УК ООО \"ЭССЖ\"",0,null,"2014-09-01",8,"паспорт готовности дома","УК ООО \"ЭССЖ\"",0,null,"2014-09-01",8,"паспорт готовности дома","УК ООО \"ЭССЖ\"","Нет",0]
[7,"м","Пушкинский м.р.","Правдинский г.п.","Правдинский",null,"НЕТ","Герцена улица",1,"НЕТ",null,"НЕТ","НЕТ",null,null,"НЕТ",null,141260,null,1038.2,1999,"кирпичный","ж/б блоки","плоская мягкая","кирпич",2,2,null,9,null,2,214,107,null,"Нет",null,null,6518.2,460,248.9,700.3,null,null,null,null,700.3,null,null,null,null,null,null,107,107,null,null,20,61,26,null,null,null,null,null,null,null,null,null,null,null,null,null,null,null,null,null,null,null,null,null,null,null,null,"Решение собственников","Кальный В.К,","ООО УК \"ЭнергоСтройСервисЖильё\" (ООО УК \"ЭССЖ\")",1035007557914,503801001,5038040315,"8-496-580-02-45","М.обл.г.Пушкино,Московский проспект д.44","М.обл.г.Пушкино,Московский проспект д.44","http://essgh.ru","uk-essgh@ya.ru","2011-12-01","Да","ОАО \"Пушкинская Теплосеть\"","№48 от 01.06.2006",1125038000306,503801001,5038088317,"8-496-535-85-05","141205 М.обл.г.Пушкино пр.И.Арманд д.4","141205 М.обл.г.Пушкино пр.И.Арманд д.4",null,"teploset-p@mail.ru","момента ввода в эксплуатацию","ОАО \"Мосэнергосбыт\"",null,null,99745001,7736520080,"8-496-535-05-05","141200 М.обл. г.Пушкино ул.Островского д.22","117312 г.Москва ул.Вавилова д.9",null,"bazaleyin@mosenergosbyt.ru","с даты ввода в эксплуатацию","да","Филиал ГУП МО \"Мособлгаз\" Мытищинский межрайонный трест газового хозяйства\"",null,null,502902002,5000001317,"8-495-583-23-50","141002 М.обл. г.Мытищи ул.Белобородова д.6","141002 М.обл. г.Мытищи ул.Белобородова д.6","www.mytishchi.mosoblgaz.ru","mytischchi@mosoblgaz.ru","с даты ввода в эксплуатацию","Да","ОАО \"Пушкинская Теплосеть\"","№48 от 01.06.2006",1125038000306,503801001,5038088317,"8-496-535-85-05","141205 М.обл.г.Пушкино пр.И.Арманд д.4","141205 М.обл.г.Пушкино пр.И.Арманд д.4",null,"teploset-p@mail.ru","момента ввода в эксплуатацию","Да","МУП \"Пушкинский Водоканал\"\"",null,1075038013159,503801001,5038057693,"8-496-532-09-05","141200 М.обл.г.Пушкино ул.Учинская д.16","141200 М.обл.г.Пушкино ул.Учинская д.16",null,"push_vodokanal@mail.ru","с момента ввода в эксплуатацию","Да","МУП \"Пушкинский Водоканал\"\"",null,1075038013159,503801001,5038057693,"8-496-532-09-05","141200 М.обл.г.Пушкино ул.Учинская д.16","141200 М.обл.г.Пушкино ул.Учинская д.16",null,"push_vodokanal@mail.ru","с момента ввода в эксплуатацию","да","нет","нет","нет","нет","нет","нет","нет","нет","нет","нет",2006,0,null,"2014-08-01",15,"паспорт готовности дома","УК ООО \"ЭССЖ\"","Да",0,null,"2014-08-01",15,"паспорт готовности дома","УК ООО \"ЭССЖ\"",0,null,"2014-08-01",15,"паспорт готовности дома","УК ООО \"ЭССЖ\"",0,null,"2014-08-01",15,"паспорт готовности дома","УК ООО \"ЭССЖ\"",0,null,"2014-08-01",15,"паспорт готовности дома","УК ООО \"ЭССЖ\"",0,null,"2014-08-01",15,"паспорт готовности дома","УК ООО \"ЭССЖ\"","Нет",null,null,null,null,null,null,"Нет",null,null,null,null,null,null,"Да",0,null,"2014-08-01",15,"паспорт готовности дома","УК ООО \"ЭССЖ\"",0,null,"2014-08-01",15,"паспорт готовности дома","УК ООО \"ЭССЖ\"",0,null,"2014-08-01",15,"паспорт готовности дома","УК ООО \"ЭССЖ\"",0,null,"2014-08-01",15,"паспорт готовности дома","УК ООО \"ЭССЖ\"","Нет",0]
[8,"м","Пушкинский м.р.","Правдинский г.п.","Правдинский",null,"НЕТ","Герцена улица",30,"НЕТ",null,"НЕТ","НЕТ",null,1,"НЕТ",null,141260,"222:066-29408",8400,2011,"монолитно / кирпичный","монолитная ж/б плита","мягкая плоская совмещенная","кирпич",4,4,8,10,2,4,276,138,null,"Нет",null,null,11503.32,540,3082.5,null,1246.5999999999999,null,null,null,null,null,null,null,null,null,null,138,138,null,null,60,67,11,null,null,null,null,null,null,null,null,null,null,null,null,null,null,null,null,19,19,null,null,null,853.38,null,null,"Решение собственников","Кальный В.К,","ООО УК \"ЭнергоСтройСервисЖильё\" (ООО УК \"ЭССЖ\")",1035007557914,503801001,5038040315,"8-496-580-02-45","М.обл.г.Пушкино,Московский проспект д.44","М.обл.г.Пушкино,Московский проспект д.44","http://essgh.ru","uk-essgh@ya.ru","2014-01-01","Да","ОАО \"Пушкинская Теплосеть\"","№48 от 01.06.2006",1125038000306,503801001,5038088317,"8-496-535-85-05","141205 М.обл.г.Пушкино пр.И.Арманд д.4","141205 М.обл.г.Пушкино пр.И.Арманд д.4",null,"teploset-p@mail.ru","момента ввода в эксплуатацию","ОАО \"Мосэнергосбыт\"",null,null,99745001,7736520080,"8-496-535-05-05","141200 М.обл. г.Пушкино ул.Островского д.22","117312 г.Москва ул.Вавилова д.9",null,"bazaleyin@mosenergosbyt.ru","с даты ввода в эксплуатацию","да","Филиал ГУП МО \"Мособлгаз\" Мытищинский межрайонный трест газового хозяйства\"",null,null,502902002,5000001317,"8-495-583-23-50","141002 М.обл. г.Мытищи ул.Белобородова д.6","141002 М.обл. г.Мытищи ул.Белобородова д.6","www.mytishchi.mosoblgaz.ru","mytischchi@mosoblgaz.ru","с даты ввода в эксплуатацию","Да","ОАО \"Пушкинская Теплосеть\"","№48 от 01.06.2006",1125038000306,503801001,5038088317,"8-496-535-85-05","141205 М.обл.г.Пушкино пр.И.Арманд д.4","141205 М.обл.г.Пушкино пр.И.Арманд д.4",null,"teploset-p@mail.ru","момента ввода в эксплуатацию","Да","МУП \"Пушкинский Водоканал\"\"",null,1075038013159,503801001,5038057693,"8-496-532-09-05","141200 М.обл.г.Пушкино ул.Учинская д.16","141200 М.обл.г.Пушкино ул.Учинская д.16",null,"push_vodokanal@mail.ru","с момента ввода в эксплуатацию","Да","МУП \"Пушкинский Водоканал\"\"",null,1075038013159,503801001,5038057693,"8-496-532-09-05","141200 М.обл.г.Пушкино ул.Учинская д.16","141200 М.обл.г.Пушкино ул.Учинская д.16",null,"push_vodokanal@mail.ru","с момента ввода в эксплуатацию","да","нет","нет","нет","нет","нет","нет","нет","нет","нет","нет",2011,0,null,"2014-08-01",3,"паспорт готовности дома","УК ООО \"ЭССЖ\"","Нет",null,null,null,null,null,null,0,null,"2014-08-01",3,"паспорт готовности дома","УК ООО \"ЭССЖ\"",0,null,"2014-08-01",3,"паспорт готовности дома","УК ООО \"ЭССЖ\"",0,null,"2014-08-01",3,"паспорт готовности дома","УК ООО \"ЭССЖ\"",0,null,"2014-08-01",3,"паспорт готовности дома","УК ООО \"ЭССЖ\"","Нет",null,null,null,null,null,null,"Нет",null,null,null,null,null,null,"Да",0,null,"2014-08-01",3,"паспорт готовности дома","УК ООО \"ЭССЖ\"",0,null,"2014-08-01",3,"паспорт готовности дома","УК ООО \"ЭССЖ\"",0,null,"2014-08-01",3,"паспорт готовности дома","УК ООО \"ЭССЖ\"",0,null,"2014-08-01",3,"паспорт готовности дома","УК ООО \"ЭССЖ\"","Нет",0]
[9,"м","Пушкинский м.р.","Правдинский г.п.","Правдинский",null,"НЕТ","Герцена улица",30,"НЕТ",null,"НЕТ","НЕТ",null,2,"НЕТ",null,141260,"222:066-29408-1",7800,2012,"монолитно / кирпичный","монолитная ж/б плита","мягкая плоская совмещенная","кирпич",3,3,null,10,null,3,234,117,null,"Нет",null,null,9329.1,405,1083.9000000000001,null,817.5,null,null,null,null,null,null,null,null,null,null,117,117,null,null,38,58,21,null,null,null,null,null,null,null,null,null,null,null,null,null,null,null,null,20,20,null,null,null,504.4,null,null,"Решение собственников","Кальный В.К,","ООО УК \"ЭнергоСтройСервисЖильё\" (ООО УК \"ЭССЖ\")",1035007557914,503801001,5038040315,"8-496-580-02-45","М.обл.г.Пушкино,Московский проспект д.44","М.обл.г.Пушкино,Московский проспект д.44","http://essgh.ru","uk-essgh@ya.ru","2014-01-01","Да","ОАО \"Пушкинская Теплосеть\"","№48 от 01.06.2006",1125038000306,503801001,5038088317,"8-496-535-85-05","141205 М.обл.г.Пушкино пр.И.Арманд д.4","141205 М.обл.г.Пушкино пр.И.Арманд д.4",null,"teploset-p@mail.ru","момента ввода в эксплуатацию","ОАО \"Мосэнергосбыт\"",null,null,99745001,7736520080,"8-496-535-05-05","141200 М.обл. г.Пушкино ул.Островского д.22","117312 г.Москва ул.Вавилова д.9",null,"bazaleyin@mosenergosbyt.ru","с даты ввода в эксплуатацию","да","Филиал ГУП МО \"Мособлгаз\" Мытищинский межрайонный трест газового хозяйства\"",null,null,502902002,5000001317,"8-495-583-23-50","141002 М.обл. г.Мытищи ул.Белобородова д.6","141002 М.обл. г.Мытищи ул.Белобородова д.6","www.mytishchi.mosoblgaz.ru","mytischchi@mosoblgaz.ru","с даты ввода в эксплуатацию","Да","ОАО \"Пушкинская Теплосеть\"","№48 от 01.06.2006",1125038000306,503801001,5038088317,"8-496-535-85-05","141205 М.обл.г.Пушкино пр.И.Арманд д.4","141205 М.обл.г.Пушкино пр.И.Арманд д.4",null,"teploset-p@mail.ru","момента ввода в эксплуатацию","Да","МУП \"Пушкинский Водоканал\"\"",null,1075038013159,503801001,5038057693,"8-496-532-09-05","141200 М.обл.г.Пушкино ул.Учинская д.16","141200 М.обл.г.Пушкино ул.Учинская д.16",null,"push_vodokanal@mail.ru","с момента ввода в эксплуатацию","Да","МУП \"Пушкинский Водоканал\"\"",null,1075038013159,503801001,5038057693,"8-496-532-09-05","141200 М.обл.г.Пушкино ул.Учинская д.16","141200 М.обл.г.Пушкино ул.Учинская д.16",null,"push_vodokanal@mail.ru","с момента ввода в эксплуатацию","да","нет","нет","нет","нет","нет","нет","нет","нет","нет","нет",2012,0,null,"2014-08-01",2,"паспорт готовности дома","УК ООО \"ЭССЖ\"","Нет",null,null,null,null,null,null,0,null,"2014-08-01",2,"паспорт готовности дома","УК ООО \"ЭССЖ\"",0,null,"2014-08-01",2,"паспорт готовности дома","УК ООО \"ЭССЖ\"",0,null,"2014-08-01",2,"паспорт готовности дома","УК ООО \"ЭССЖ\"",0,null,"2014-08-01",2,"паспорт готовности дома","УК ООО \"ЭССЖ\"","Нет",null,null,null,null,null,null,"Нет",null,null,null,null,null,null,"Да",0,null,"2014-08-01",2,"паспорт готовности дома","УК ООО \"ЭССЖ\"",0,null,"2014-08-01",2,"паспорт готовности дома","УК ООО \"ЭССЖ\"",0,null,"2014-08-01",2,"паспорт готовности дома","УК ООО \"ЭССЖ\"",0,null,"2014-08-01",2,"паспорт готовности дома","УК ООО \"ЭССЖ\"","Нет",0]
[10,"м","Пушкинский м.р.","Правдинский г.п.","Правдинский",null,"НЕТ","1-я Проектная",88,"НЕТ",null,"НЕТ","НЕТ",null,null,"НЕТ",null,141261,null,2060,2006,"кирпичный","ж.б.блоки","рулонная по ж/б плитам","кирпич",3,3,null,9,null,3,466,233,null,"Нет",null,null,19151.8,1712.8,1712.8,2036.6,2073.9,null,null,null,2036.6,null,null,null,null,null,null,233,225,8,null,156,26,51,null,null,null,null,null,null,null,null,null,null,null,null,null,null,null,null,8,8,null,null,null,787.3,null,null,"Решение собственников","Кальный В.К,","ООО УК \"ЭнергоСтройСервисЖильё\" (ООО УК \"ЭССЖ\")",1035007557914,503801001,5038040315,"8-496-580-02-45","М.обл.г.Пушкино,Московский проспект д.44","М.обл.г.Пушкино,Московский проспект д.44","http://essgh.ru","uk-essgh@ya.ru","2009-02-01","Да","ОАО \"Пушкинская Теплосеть\"","№48 от 01.06.2006",1125038000306,503801001,5038088317,"8-496-535-85-05","141205 М.обл.г.Пушкино пр.И.Арманд д.4","141205 М.обл.г.Пушкино пр.И.Арманд д.4",null,"teploset-p@mail.ru","момента ввода в эксплуатацию","ОАО \"Мосэнергосбыт\"",null,null,99745001,7736520080,"8-496-535-05-05","141200 М.обл. г.Пушкино ул.Островского д.22","117312 г.Москва ул.Вавилова д.9",null,"bazaleyin@mosenergosbyt.ru","с даты ввода в эксплуатацию","Нет",null,null,null,null,null,null,null,null,null,null,null,"Да","ОАО \"Пушкинская Теплосеть\"","№48 от 01.06.2006",1125038000306,503801001,5038088317,"8-496-535-85-05","141205 М.обл.г.Пушкино пр.И.Арманд д.4","141205 М.обл.г.Пушкино пр.И.Арманд д.4",null,"teploset-p@mail.ru","момента ввода в эксплуатацию","Да","МУП \"Пушкинский Водоканал\"\"",null,1075038013159,503801001,5038057693,"8-496-532-09-05","141200 М.обл.г.Пушкино ул.Учинская д.16","141200 М.обл.г.Пушкино ул.Учинская д.16",null,"push_vodokanal@mail.ru","с момента ввода в эксплуатацию","Да","МУП \"Пушкинский Водоканал\"\"",null,1075038013159,503801001,5038057693,"8-496-532-09-05","141200 М.обл.г.Пушкино ул.Учинская д.16","141200 М.обл.г.Пушкино ул.Учинская д.16",null,"push_vodokanal@mail.ru","с момента ввода в эксплуатацию","да","нет","нет","нет","нет","нет","нет","нет","нет","нет","нет",2010,0,null,"2014-09-01",8,"паспорт готовности дома","УК ООО \"ЭССЖ\"","Да",0,null,"2014-09-01",8,"паспорт готовности дома","УК ООО \"ЭССЖ\"",0,null,"2014-09-01",8,"паспорт готовности дома","УК ООО \"ЭССЖ\"",0,null,"2014-09-01",8,"паспорт готовности дома","УК ООО \"ЭССЖ\"",0,null,"2014-09-01",8,"паспорт готовности дома","УК ООО \"ЭССЖ\"",0,null,"2014-09-01",8,"паспорт готовности дома","УК ООО \"ЭССЖ\"","Нет",null,null,null,null,null,null,"Нет",null,null,null,null,null,null,"Да",0,null,"2014-09-01",8,"паспорт готовности дома","УК ООО \"ЭССЖ\"",0,null,"2014-09-01",8,"паспорт готовности дома","УК ООО \"ЭССЖ\"",0,null,"2014-09-01",8,"паспорт готовности дома","УК ООО \"ЭССЖ\"",0,null,"2014-09-01",8,"паспорт готовности дома","УК ООО \"ЭССЖ\"","Нет",0]
[{"$f":"A18+1","v":11},"м","Пушкинский м.р.","Правдинский г.п.","Правдинский",null,"НЕТ","Садовая",17,"НЕТ",null,"НЕТ","НЕТ",null,null,"НЕТ",null,141260,null,1547,1991,"кирпичный","ж/б блоки","мягкая плоская совмещенная","кирпич",8,8,null,5,null,null,232,116,null,"Нет",null,null,7735.8,624.1,null,1319,null,null,null,null,1319,null,null,null,null,null,null,116,106,10,null,31,61,24,null,null,null,null,null,null,null,null,null,null,null,null,null,null,null,null,3,3,null,null,null,257.3,null,null,"Решение собственников","Кальный В.К,","ООО УК \"ЭнергоСтройСервисЖильё\" (ООО УК \"ЭССЖ\")",1035007557914,503801001,5038040315,"8-496-580-02-45","М.обл.г.Пушкино,Московский проспект д.44","М.обл.г.Пушкино,Московский проспект д.44","http://essgh.ru","uk-essgh@ya.ru","2012-09-01","Да","ОАО \"Пушкинская Теплосеть\"","№48 от 01.06.2006",1125038000306,503801001,5038088317,"8-496-535-85-05","141205 М.обл.г.Пушкино пр.И.Арманд д.4","141205 М.обл.г.Пушкино пр.И.Арманд д.4",null,"teploset-p@mail.ru","момента ввода в эксплуатацию","ОАО \"Мосэнергосбыт\"",null,null,99745001,7736520080,"8-496-535-05-05","141200 М.обл. г.Пушкино ул.Островского д.22","117312 г.Москва ул.Вавилова д.9",null,"bazaleyin@mosenergosbyt.ru","с даты ввода в эксплуатацию","да","Филиал ГУП МО \"Мособлгаз\" Мытищинский межрайонный трест газового хозяйства\"",null,null,502902002,5000001317,"8-495-583-23-50","141002 М.обл. г.Мытищи ул.Белобородова д.6","141002 М.обл. г.Мытищи ул.Белобородова д.6","www.mytishchi.mosoblgaz.ru","mytischchi@mosoblgaz.ru","с даты ввода в эксплуатацию","Да","ОАО \"Пушкинская Теплосеть\"","№48 от 01.06.2006",1125038000306,503801001,5038088317,"8-496-535-85-05","141205 М.обл.г.Пушкино пр.И.Арманд д.4","141205 М.обл.г.Пушкино пр.И.Арманд д.4",null,"teploset-p@mail.ru","момента ввода в эксплуатацию","Да","МУП \"Пушкинский Водоканал\"\"",null,1075038013159,503801001,5038057693,"8-496-532-09-05","141200 М.обл.г.Пушкино ул.Учинская д.16","141200 М.обл.г.Пушкино ул.Учинская д.16",null,"push_vodokanal@mail.ru","с момента ввода в эксплуатацию","Да","МУП \"Пушкинский Водоканал\"\"",null,1075038013159,503801001,5038057693,"8-496-532-09-05","141200 М.обл.г.Пушкино ул.Учинская д.16","141200 М.обл.г.Пушкино ул.Учинская д.16",null,"push_vodokanal@mail.ru","с момента ввода в эксплуатацию","Нет",null,null,null,null,null,null,null,null,null,null,null,0,null,"2014-08-01",23,"паспорт готовности дома","УК ООО \"ЭССЖ\"","Да",0,null,"2014-08-01",23,"паспорт готовности дома","УК ООО \"ЭССЖ\"",0,null,"2014-08-01",23,"паспорт готовности дома","УК ООО \"ЭССЖ\"",0,null,"2014-08-01",23,"паспорт готовности дома","УК ООО \"ЭССЖ\"",0,null,"2014-08-01",23,"паспорт готовности дома","УК ООО \"ЭССЖ\"",0,null,"2014-08-01",23,"паспорт готовности дома","УК ООО \"ЭССЖ\"","Нет",null,null,null,null,null,null,"Нет",null,null,null,null,null,null,"Да",0,null,"2014-08-01",23,"паспорт готовности дома","УК ООО \"ЭССЖ\"",0,null,"2014-08-01",23,"паспорт готовности дома","УК ООО \"ЭССЖ\"",0,null,"2014-08-01",23,"паспорт готовности дома","УК ООО \"ЭССЖ\"",0,null,"2014-08-01",23,"паспорт готовности дома","УК ООО \"ЭССЖ\"","Нет",0]
[{"$f":"A19+1","v":12},"м","Пушкинский м.р.","Правдинский г.п.","Правдинский",null,"НЕТ","Садовая",19,"НЕТ",null,"НЕТ","НЕТ",null,null,"НЕТ",null,141260,null,2475,1969,"кирпичный/ ж.б.панели","ж/б блоки","мягкая плоская совмещенная","кирпич/панели",11,11,null,5,null,null,310,155,null,"Нет",null,null,9746.2000000000007,570.29999999999995,null,935.4,null,null,null,null,935.4,null,null,null,null,null,null,155,130,25,null,22,106,19,9,null,null,null,null,null,null,null,null,null,null,null,null,null,null,null,5,5,null,null,null,340.3,null,null,"Решение собственников","Кальный В.К,","ООО УК \"ЭнергоСтройСервисЖильё\" (ООО УК \"ЭССЖ\")",1035007557914,503801001,5038040315,"8-496-580-02-45","М.обл.г.Пушкино,Московский проспект д.44","М.обл.г.Пушкино,Московский проспект д.44","http://essgh.ru","uk-essgh@ya.ru","2012-09-01","Да","ОАО \"Пушкинская Теплосеть\"","№48 от 01.06.2006",1125038000306,503801001,5038088317,"8-496-535-85-05","141205 М.обл.г.Пушкино пр.И.Арманд д.4","141205 М.обл.г.Пушкино пр.И.Арманд д.4",null,"teploset-p@mail.ru","момента ввода в эксплуатацию","ОАО \"Мосэнергосбыт\"",null,null,99745001,7736520080,"8-496-535-05-05","141200 М.обл. г.Пушкино ул.Островского д.22","117312 г.Москва ул.Вавилова д.9",null,"bazaleyin@mosenergosbyt.ru","с даты ввода в эксплуатацию","да","Филиал ГУП МО \"Мособлгаз\" Мытищинский межрайонный трест газового хозяйства\"",null,null,502902002,5000001317,"8-495-583-23-50","141002 М.обл. г.Мытищи ул.Белобородова д.6","141002 М.обл. г.Мытищи ул.Белобородова д.6","www.mytishchi.mosoblgaz.ru","mytischchi@mosoblgaz.ru","с даты ввода в эксплуатацию","Да","ОАО \"Пушкинская Теплосеть\"","№48 от 01.06.2006",1125038000306,503801001,5038088317,"8-496-535-85-05","141205 М.обл.г.Пушкино пр.И.Арманд д.4","141205 М.обл.г.Пушкино пр.И.Арманд д.4",null,"teploset-p@mail.ru","момента ввода в эксплуатацию","Да","МУП \"Пушкинский Водоканал\"\"",null,1075038013159,503801001,5038057693,"8-496-532-09-05","141200 М.обл.г.Пушкино ул.Учинская д.16","141200 М.обл.г.Пушкино ул.Учинская д.16",null,"push_vodokanal@mail.ru","с момента ввода в эксплуатацию","Да","МУП \"Пушкинский Водоканал\"\"",null,1075038013159,503801001,5038057693,"8-496-532-09-05","141200 М.обл.г.Пушкино ул.Учинская д.16","141200 М.обл.г.Пушкино ул.Учинская д.16",null,"push_vodokanal@mail.ru","с момента ввода в эксплуатацию","Нет",null,null,null,null,null,null,null,null,null,null,null,0,null,"2014-08-01",45,"паспорт готовности дома","УК ООО \"ЭССЖ\"","Да",0,null,"2014-08-01",45,"паспорт готовности дома","УК ООО \"ЭССЖ\"",0,null,"2014-08-01",45,"паспорт готовности дома","УК ООО \"ЭССЖ\"",0,null,"2014-08-01",45,"паспорт готовности дома","УК ООО \"ЭССЖ\"",0,null,"2014-08-01",45,"паспорт готовности дома","УК ООО \"ЭССЖ\"",0,null,"2014-08-01",45,"паспорт готовности дома","УК ООО \"ЭССЖ\"","Нет",null,null,null,null,null,null,"Нет",null,null,null,null,null,null,"Да",0,null,"2014-08-01",45,"паспорт готовности дома","УК ООО \"ЭССЖ\"",0,null,"2014-08-01",45,"паспорт готовности дома","УК ООО \"ЭССЖ\"",0,null,"2014-08-01",45,"паспорт готовности дома","УК ООО \"ЭССЖ\"",0,null,"2014-08-01",{"$f":"2014-U20","v":45},"паспорт готовности дома","УК ООО \"ЭССЖ\"","Нет",0]
[13,"м","Пушкинский м.р.","Правдинский г.п.","Правдинский",null,"НЕТ","Садовая",21,"НЕТ",null,"НЕТ","НЕТ",null,null,"НЕТ",null,141260,null,873,1964,"кирпичный","ж/б блоки","мягкая плоская совмещенная","кирпич",4,4,null,4,null,null,128,64,null,"Нет",null,null,2822.4,243.3,null,null,null,null,null,null,null,null,null,null,null,null,null,64,57,7,null,16,48,null,null,null,null,null,null,null,null,null,null,null,null,null,null,null,null,null,null,null,null,null,null,null,null,null,"Решение собственников","Кальный В.К,","ООО УК \"ЭнергоСтройСервисЖильё\" (ООО УК \"ЭССЖ\")",1035007557914,503801001,5038040315,"8-496-580-02-45","М.обл.г.Пушкино,Московский проспект д.44","М.обл.г.Пушкино,Московский проспект д.44","http://essgh.ru","uk-essgh@ya.ru","2012-09-01","Да","ОАО \"Пушкинская Теплосеть\"","№48 от 01.06.2006",1125038000306,503801001,5038088317,"8-496-535-85-05","141205 М.обл.г.Пушкино пр.И.Арманд д.4","141205 М.обл.г.Пушкино пр.И.Арманд д.4",null,"teploset-p@mail.ru","момента ввода в эксплуатацию","ОАО \"Мосэнергосбыт\"",null,null,99745001,7736520080,"8-496-535-05-05","141200 М.обл. г.Пушкино ул.Островского д.22","117312 г.Москва ул.Вавилова д.9",null,"bazaleyin@mosenergosbyt.ru","с даты ввода в эксплуатацию","да","Филиал ГУП МО \"Мособлгаз\" Мытищинский межрайонный трест газового хозяйства\"",null,null,502902002,5000001317,"8-495-583-23-50","141002 М.обл. г.Мытищи ул.Белобородова д.6","141002 М.обл. г.Мытищи ул.Белобородова д.6","www.mytishchi.mosoblgaz.ru","mytischchi@mosoblgaz.ru","с даты ввода в эксплуатацию","Да","ОАО \"Пушкинская Теплосеть\"","№48 от 01.06.2006",1125038000306,503801001,5038088317,"8-496-535-85-05","141205 М.обл.г.Пушкино пр.И.Арманд д.4","141205 М.обл.г.Пушкино пр.И.Арманд д.4",null,"teploset-p@mail.ru","момента ввода в эксплуатацию","Да","МУП \"Пушкинский Водоканал\"\"",null,1075038013159,503801001,5038057693,"8-496-532-09-05","141200 М.обл.г.Пушкино ул.Учинская д.16","141200 М.обл.г.Пушкино ул.Учинская д.16",null,"push_vodokanal@mail.ru","с момента ввода в эксплуатацию","Да","МУП \"Пушкинский Водоканал\"\"",null,1075038013159,503801001,5038057693,"8-496-532-09-05","141200 М.обл.г.Пушкино ул.Учинская д.16","141200 М.обл.г.Пушкино ул.Учинская д.16",null,"push_vodokanal@mail.ru","с момента ввода в эксплуатацию","Нет",null,null,null,null,null,null,null,null,null,null,null,0,null,"2014-08-01",50,"паспорт готовности дома","УК ООО \"ЭССЖ\"","Нет",null,null,null,null,null,null,0,null,"2014-08-01",50,"паспорт готовности дома","УК ООО \"ЭССЖ\"",0,null,"2014-08-01",50,"паспорт готовности дома","УК ООО \"ЭССЖ\"",0,null,"2014-08-01",50,"паспорт готовности дома","УК ООО \"ЭССЖ\"",0,null,"2014-08-01",50,"паспорт готовности дома","УК ООО \"ЭССЖ\"","Нет",null,null,null,null,null,null,"Нет",null,null,null,null,null,null,"Да",0,null,"2014-08-01",50,"паспорт готовности дома","УК ООО \"ЭССЖ\"",0,null,"2014-08-01",50,"паспорт готовности дома","УК ООО \"ЭССЖ\"",0,null,"2014-08-01",50,"паспорт готовности дома","УК ООО \"ЭССЖ\"",0,null,"2014-08-01",{"$f":"2014-U21","v":50},"паспорт готовности дома","УК ООО \"ЭССЖ\"","Нет",0]
[14,"м","Пушкинский м.р.","Правдинский г.п.","Правдинский",null,"НЕТ","Институтский проезд",2,"НЕТ",null,"НЕТ","НЕТ",null,null,"НЕТ",null,141260,null,1228,1975,"кирпичный","ж/б блоки","мягкая плоская совмещенная","кирпич",6,6,null,5,null,null,192,96,null,"Нет",null,null,5732.8,408.8,null,990.5,null,null,null,null,990.5,null,null,null,null,null,null,96,89,7,null,14,60,22,null,null,null,null,null,null,null,null,null,null,null,null,null,null,null,null,1,1,null,null,null,43,null,null,"Решение собственников","Кальный В.К,","ООО УК \"ЭнергоСтройСервисЖильё\" (ООО УК \"ЭССЖ\")",1035007557914,503801001,5038040315,"8-496-580-02-45","М.обл.г.Пушкино,Московский проспект д.44","М.обл.г.Пушкино,Московский проспект д.44","http://essgh.ru","uk-essgh@ya.ru","2012-09-01","Да","ОАО \"Пушкинская Теплосеть\"","№48 от 01.06.2006",1125038000306,503801001,5038088317,"8-496-535-85-05","141205 М.обл.г.Пушкино пр.И.Арманд д.4","141205 М.обл.г.Пушкино пр.И.Арманд д.4",null,"teploset-p@mail.ru","момента ввода в эксплуатацию","ОАО \"Мосэнергосбыт\"",null,null,99745001,7736520080,"8-496-535-05-05","141200 М.обл. г.Пушкино ул.Островского д.22","117312 г.Москва ул.Вавилова д.9",null,"bazaleyin@mosenergosbyt.ru","с даты ввода в эксплуатацию","да","Филиал ГУП МО \"Мособлгаз\" Мытищинский межрайонный трест газового хозяйства\"",null,null,502902002,5000001317,"8-495-583-23-50","141002 М.обл. г.Мытищи ул.Белобородова д.6","141002 М.обл. г.Мытищи ул.Белобородова д.6","www.mytishchi.mosoblgaz.ru","mytischchi@mosoblgaz.ru","с даты ввода в эксплуатацию","Да","ОАО \"Пушкинская Теплосеть\"","№48 от 01.06.2006",1125038000306,503801001,5038088317,"8-496-535-85-05","141205 М.обл.г.Пушкино пр.И.Арманд д.4","141205 М.обл.г.Пушкино пр.И.Арманд д.4",null,"teploset-p@mail.ru","момента ввода в эксплуатацию","Да","МУП \"Пушкинский Водоканал\"\"",null,1075038013159,503801001,5038057693,"8-496-532-09-05","141200 М.обл.г.Пушкино ул.Учинская д.16","141200 М.обл.г.Пушкино ул.Учинская д.16",null,"push_vodokanal@mail.ru","с момента ввода в эксплуатацию","Да","МУП \"Пушкинский Водоканал\"\"",null,1075038013159,503801001,5038057693,"8-496-532-09-05","141200 М.обл.г.Пушкино ул.Учинская д.16","141200 М.обл.г.Пушкино ул.Учинская д.16",null,"push_vodokanal@mail.ru","с момента ввода в эксплуатацию","Нет",null,null,null,null,null,null,null,null,null,null,null,0,null,"2014-08-01",39,"паспорт готовности дома","УК ООО \"ЭССЖ\"","Да",0,null,"2014-08-01",39,"паспорт готовности дома","УК ООО \"ЭССЖ\"",0,null,"2014-08-01",39,"паспорт готовности дома","УК ООО \"ЭССЖ\"",0,null,"2014-08-01",39,"паспорт готовности дома","УК ООО \"ЭССЖ\"",0,null,"2014-08-01",39,"паспорт готовности дома","УК ООО \"ЭССЖ\"",0,null,"2014-08-01",39,"паспорт готовности дома","УК ООО \"ЭССЖ\"","Нет",null,null,null,null,null,null,"Нет",null,null,null,null,null,null,"Да",0,null,"2014-08-01",39,"паспорт готовности дома","УК ООО \"ЭССЖ\"",0,null,"2014-08-01",39,"паспорт готовности дома","УК ООО \"ЭССЖ\"",0,null,"2014-08-01",39,"паспорт готовности дома","УК ООО \"ЭССЖ\"",0,null,"2014-08-01",39,"паспорт готовности дома","УК ООО \"ЭССЖ\"","Нет",0]
[15,"м","Пушкинский м.р.","Правдинский г.п.","Правдинский",null,"НЕТ","Советская",4,"НЕТ",null,"НЕТ","НЕТ",null,null,"НЕТ",null,141260,null,918,1969,"кирпичный","ж/б блоки","мягкая плоская совмещенная","кирпич",4,4,null,5,null,null,153,70,null,"Нет",null,null,4414.5,273.5,null,761.3,null,null,null,null,761.3,null,null,null,null,null,null,70,59,11,null,10,30,20,10,null,null,null,null,null,null,null,null,null,null,null,null,null,null,null,null,null,null,null,null,null,null,null,"Решение собственников","Кальный В.К,","ООО УК \"ЭнергоСтройСервисЖильё\" (ООО УК \"ЭССЖ\")",1035007557914,503801001,5038040315,"8-496-580-02-45","М.обл.г.Пушкино,Московский проспект д.44","М.обл.г.Пушкино,Московский проспект д.44","http://essgh.ru","uk-essgh@ya.ru","2012-09-01","Да","ОАО \"Пушкинская Теплосеть\"","№48 от 01.06.2006",1125038000306,503801001,5038088317,"8-496-535-85-05","141205 М.обл.г.Пушкино пр.И.Арманд д.4","141205 М.обл.г.Пушкино пр.И.Арманд д.4",null,"teploset-p@mail.ru","момента ввода в эксплуатацию","ОАО \"Мосэнергосбыт\"",null,null,99745001,7736520080,"8-496-535-05-05","141200 М.обл. г.Пушкино ул.Островского д.22","117312 г.Москва ул.Вавилова д.9",null,"bazaleyin@mosenergosbyt.ru","с даты ввода в эксплуатацию","да","Филиал ГУП МО \"Мособлгаз\" Мытищинский межрайонный трест газового хозяйства\"",null,null,502902002,5000001317,"8-495-583-23-50","141002 М.обл. г.Мытищи ул.Белобородова д.6","141002 М.обл. г.Мытищи ул.Белобородова д.6","www.mytishchi.mosoblgaz.ru","mytischchi@mosoblgaz.ru","с даты ввода в эксплуатацию","Да","ОАО \"Пушкинская Теплосеть\"","№48 от 01.06.2006",1125038000306,503801001,5038088317,"8-496-535-85-05","141205 М.обл.г.Пушкино пр.И.Арманд д.4","141205 М.обл.г.Пушкино пр.И.Арманд д.4",null,"teploset-p@mail.ru","момента ввода в эксплуатацию","Да","МУП \"Пушкинский Водоканал\"\"",null,1075038013159,503801001,5038057693,"8-496-532-09-05","141200 М.обл.г.Пушкино ул.Учинская д.16","141200 М.обл.г.Пушкино ул.Учинская д.16",null,"push_vodokanal@mail.ru","с момента ввода в эксплуатацию","Да","МУП \"Пушкинский Водоканал\"\"",null,1075038013159,503801001,5038057693,"8-496-532-09-05","141200 М.обл.г.Пушкино ул.Учинская д.16","141200 М.обл.г.Пушкино ул.Учинская д.16",null,"push_vodokanal@mail.ru","с момента ввода в эксплуатацию","Нет",null,null,null,null,null,null,null,null,null,null,null,0,null,"2014-08-01",45,"паспорт готовности дома","УК ООО \"ЭССЖ\"","Да",0,null,"2014-08-01",45,"паспорт готовности дома","УК ООО \"ЭССЖ\"",0,null,"2014-08-01",45,"паспорт готовности дома","УК ООО \"ЭССЖ\"",0,null,"2014-08-01",45,"паспорт готовности дома","УК ООО \"ЭССЖ\"",0,null,"2014-08-01",45,"паспорт готовности дома","УК ООО \"ЭССЖ\"",0,null,"2014-08-01",45,"паспорт готовности дома","УК ООО \"ЭССЖ\"","Нет",null,null,null,null,null,null,"Нет",null,null,null,null,null,null,"Да",0,null,"2014-08-01",45,"паспорт готовности дома","УК ООО \"ЭССЖ\"",0,null,"2014-08-01",45,"паспорт готовности дома","УК ООО \"ЭССЖ\"",0,null,"2014-08-01",45,"паспорт готовности дома","УК ООО \"ЭССЖ\"",0,null,"2014-08-01",45,"паспорт готовности дома","УК ООО \"ЭССЖ\"","Нет",0]
[16,"м","Пушкинский м.р.","Пушкино г.п.","Пушкино","Мамонтовка","НЕТ","Гоголевская",2,"НЕТ",null,"НЕТ","НЕТ",null,null,"НЕТ",null,141241,null,5711,1973,"крупно-панельный","ж/б блоки","мягкая плоская совмещенная","панели",4,4,null,5,null,null,123,60,null,"Нет",null,null,3460.1,401.4,null,556.1,null,null,null,null,556.1,null,null,null,null,null,null,60,49,11,null,10,40,10,null,null,null,null,null,null,null,null,null,null,null,null,null,null,null,null,null,null,null,null,null,null,null,null,"Решение собственников","Кальный В.К,","ООО УК \"ЭнергоСтройСервисЖильё\" (ООО УК \"ЭССЖ\")",1035007557914,503801001,5038040315,"8-496-580-02-45","М.обл.г.Пушкино,Московский проспект д.44","М.обл.г.Пушкино,Московский проспект д.44","http://essgh.ru","uk-essgh@ya.ru","2012-02-01","Да","ОАО \"Пушкинская Теплосеть\"","№48 от 01.06.2006",1125038000306,503801001,5038088317,"8-496-535-85-05","141205 М.обл.г.Пушкино пр.И.Арманд д.4","141205 М.обл.г.Пушкино пр.И.Арманд д.4",null,"teploset-p@mail.ru","момента ввода в эксплуатацию","ОАО \"Мосэнергосбыт\"",null,null,99745001,7736520080,"8-496-535-05-05","141200 М.обл. г.Пушкино ул.Островского д.22","117312 г.Москва ул.Вавилова д.9",null,"bazaleyin@mosenergosbyt.ru","с даты ввода в эксплуатацию","да","Филиал ГУП МО \"Мособлгаз\" Мытищинский межрайонный трест газового хозяйства\"",null,null,502902002,5000001317,"8-495-583-23-50","141002 М.обл. г.Мытищи ул.Белобородова д.6","141002 М.обл. г.Мытищи ул.Белобородова д.6","www.mytishchi.mosoblgaz.ru","mytischchi@mosoblgaz.ru","с даты ввода в эксплуатацию","Да","ОАО \"Пушкинская Теплосеть\"","№48 от 01.06.2006",1125038000306,503801001,5038088317,"8-496-535-85-05","141205 М.обл.г.Пушкино пр.И.Арманд д.4","141205 М.обл.г.Пушкино пр.И.Арманд д.4",null,"teploset-p@mail.ru","момента ввода в эксплуатацию","Да","МУП \"Пушкинский Водоканал\"\"",null,1075038013159,503801001,5038057693,"8-496-532-09-05","141200 М.обл.г.Пушкино ул.Учинская д.16","141200 М.обл.г.Пушкино ул.Учинская д.16",null,"push_vodokanal@mail.ru","с момента ввода в эксплуатацию","Да","МУП \"Пушкинский Водоканал\"\"",null,1075038013159,503801001,5038057693,"8-496-532-09-05","141200 М.обл.г.Пушкино ул.Учинская д.16","141200 М.обл.г.Пушкино ул.Учинская д.16",null,"push_vodokanal@mail.ru","с момента ввода в эксплуатацию","Нет",null,null,null,null,null,null,null,null,null,null,null,0,null,"2014-09-01",41,"паспорт готовности дома","УК ООО \"ЭССЖ\"","Да",0,null,"2014-09-01",41,"паспорт готовности дома","УК ООО \"ЭССЖ\"",0,null,"2014-09-01",41,"паспорт готовности дома","УК ООО \"ЭССЖ\"",0,null,"2014-09-01",41,"паспорт готовности дома","УК ООО \"ЭССЖ\"",0,null,"2014-09-01",41,"паспорт готовности дома","УК ООО \"ЭССЖ\"",0,null,"2014-09-01",41,"паспорт готовности дома","УК ООО \"ЭССЖ\"","Нет",null,null,null,null,null,null,"Нет",null,null,null,null,null,null,"Да",0,null,"2014-09-01",41,"паспорт готовности дома","УК ООО \"ЭССЖ\"",0,null,"2014-09-01",41,"паспорт готовности дома","УК ООО \"ЭССЖ\"",0,null,"2014-09-01",41,"паспорт готовности дома","УК ООО \"ЭССЖ\"",0,null,"2014-09-01",41,"паспорт готовности дома","УК ООО \"ЭССЖ\"","Нет",0]
[17,"м","Пушкинский м.р.","Пушкино г.п.","Пушкино","Мамонтовка","НЕТ","Гоголевская",4,"НЕТ",null,"НЕТ","НЕТ",null,null,"НЕТ",null,141241,null,6126,1984,"крупно-панельный","ж/б блоки","мягкая плоская совмещенная","панели",4,4,null,5,null,null,169,75,null,"Нет",null,null,4841.2,573.29999999999995,null,817.6,null,null,null,null,817.6,null,null,null,null,null,null,75,58,17,null,18,44,13,null,null,null,null,null,null,null,null,null,null,null,null,null,null,null,null,null,null,null,null,null,null,null,null,"Решение собственников","Кальный В.К,","ООО УК \"ЭнергоСтройСервисЖильё\" (ООО УК \"ЭССЖ\")",1035007557914,503801001,5038040315,"8-496-580-02-45","М.обл.г.Пушкино,Московский проспект д.44","М.обл.г.Пушкино,Московский проспект д.44","http://essgh.ru","uk-essgh@ya.ru","2012-02-01","Да","ОАО \"Пушкинская Теплосеть\"","№48 от 01.06.2006",1125038000306,503801001,5038088317,"8-496-535-85-05","141205 М.обл.г.Пушкино пр.И.Арманд д.4","141205 М.обл.г.Пушкино пр.И.Арманд д.4",null,"teploset-p@mail.ru","момента ввода в эксплуатацию","ОАО \"Мосэнергосбыт\"",null,null,99745001,7736520080,"8-496-535-05-05","141200 М.обл. г.Пушкино ул.Островского д.22","117312 г.Москва ул.Вавилова д.9",null,"bazaleyin@mosenergosbyt.ru","с даты ввода в эксплуатацию","да","Филиал ГУП МО \"Мособлгаз\" Мытищинский межрайонный трест газового хозяйства\"",null,null,502902002,5000001317,"8-495-583-23-50","141002 М.обл. г.Мытищи ул.Белобородова д.6","141002 М.обл. г.Мытищи ул.Белобородова д.6","www.mytishchi.mosoblgaz.ru","mytischchi@mosoblgaz.ru","с даты ввода в эксплуатацию","Да","ОАО \"Пушкинская Теплосеть\"","№48 от 01.06.2006",1125038000306,503801001,5038088317,"8-496-535-85-05","141205 М.обл.г.Пушкино пр.И.Арманд д.4","141205 М.обл.г.Пушкино пр.И.Арманд д.4",null,"teploset-p@mail.ru","момента ввода в эксплуатацию","Да","МУП \"Пушкинский Водоканал\"\"",null,1075038013159,503801001,5038057693,"8-496-532-09-05","141200 М.обл.г.Пушкино ул.Учинская д.16","141200 М.обл.г.Пушкино ул.Учинская д.16",null,"push_vodokanal@mail.ru","с момента ввода в эксплуатацию","Да","МУП \"Пушкинский Водоканал\"\"",null,1075038013159,503801001,5038057693,"8-496-532-09-05","141200 М.обл.г.Пушкино ул.Учинская д.16","141200 М.обл.г.Пушкино ул.Учинская д.16",null,"push_vodokanal@mail.ru","с момента ввода в эксплуатацию","Нет",null,null,null,null,null,null,null,null,null,null,null,0,null,"2014-09-01",30,"паспорт готовности дома","УК ООО \"ЭССЖ\"","Да",0,null,"2014-09-01",30,"паспорт готовности дома","УК ООО \"ЭССЖ\"",0,null,"2014-09-01",30,"паспорт готовности дома","УК ООО \"ЭССЖ\"",0,null,"2014-09-01",30,"паспорт готовности дома","УК ООО \"ЭССЖ\"",0,null,"2014-09-01",30,"паспорт готовности дома","УК ООО \"ЭССЖ\"",0,null,"2014-09-01",30,"паспорт готовности дома","УК ООО \"ЭССЖ\"","Нет",null,null,null,null,null,null,"Нет",null,null,null,null,null,null,"Да",0,null,"2014-09-01",30,"паспорт готовности дома","УК ООО \"ЭССЖ\"",0,null,"2014-09-01",30,"паспорт готовности дома","УК ООО \"ЭССЖ\"",0,null,"2014-09-01",30,"паспорт готовности дома","УК ООО \"ЭССЖ\"",0,null,"2014-09-01",30,"паспорт готовности дома","УК ООО \"ЭССЖ\"","Нет",0]
[18,"м","Пушкинский м.р.","Пушкино г.п.","Пушкино","Мамонтовка","НЕТ","Гоголевская",8,"НЕТ",null,"НЕТ","НЕТ",null,null,"НЕТ",null,141241,null,6190,1982,"крупно-панельный","ж/б блоки","мягкая плоская совмещенная","панели",4,4,null,5,null,null,173,75,null,"Нет",null,null,4852.3,574.29999999999995,null,817.5,null,null,null,null,817.5,null,null,null,null,null,null,75,64,11,null,18,44,13,null,null,null,null,null,null,null,null,null,null,null,null,null,null,null,null,null,null,null,null,null,null,null,null,"Решение собственников","Кальный В.К,","ООО УК \"ЭнергоСтройСервисЖильё\" (ООО УК \"ЭССЖ\")",1035007557914,503801001,5038040315,"8-496-580-02-45","М.обл.г.Пушкино,Московский проспект д.44","М.обл.г.Пушкино,Московский проспект д.44","http://essgh.ru","uk-essgh@ya.ru","2012-02-01","Да","ОАО \"Пушкинская Теплосеть\"","№48 от 01.06.2006",1125038000306,503801001,5038088317,"8-496-535-85-05","141205 М.обл.г.Пушкино пр.И.Арманд д.4","141205 М.обл.г.Пушкино пр.И.Арманд д.4",null,"teploset-p@mail.ru","момента ввода в эксплуатацию","ОАО \"Мосэнергосбыт\"",null,null,99745001,7736520080,"8-496-535-05-05","141200 М.обл. г.Пушкино ул.Островского д.22","117312 г.Москва ул.Вавилова д.9",null,"bazaleyin@mosenergosbyt.ru","с даты ввода в эксплуатацию","да","Филиал ГУП МО \"Мособлгаз\" Мытищинский межрайонный трест газового хозяйства\"",null,null,502902002,5000001317,"8-495-583-23-50","141002 М.обл. г.Мытищи ул.Белобородова д.6","141002 М.обл. г.Мытищи ул.Белобородова д.6","www.mytishchi.mosoblgaz.ru","mytischchi@mosoblgaz.ru","с даты ввода в эксплуатацию","Да","ОАО \"Пушкинская Теплосеть\"","№48 от 01.06.2006",1125038000306,503801001,5038088317,"8-496-535-85-05","141205 М.обл.г.Пушкино пр.И.Арманд д.4","141205 М.обл.г.Пушкино пр.И.Арманд д.4",null,"teploset-p@mail.ru","момента ввода в эксплуатацию","Да","МУП \"Пушкинский Водоканал\"\"",null,1075038013159,503801001,5038057693,"8-496-532-09-05","141200 М.обл.г.Пушкино ул.Учинская д.16","141200 М.обл.г.Пушкино ул.Учинская д.16",null,"push_vodokanal@mail.ru","с момента ввода в эксплуатацию","Да","МУП \"Пушкинский Водоканал\"\"",null,1075038013159,503801001,5038057693,"8-496-532-09-05","141200 М.обл.г.Пушкино ул.Учинская д.16","141200 М.обл.г.Пушкино ул.Учинская д.16",null,"push_vodokanal@mail.ru","с момента ввода в эксплуатацию","Нет",null,null,null,null,null,null,null,null,null,null,null,0,null,"2014-09-01",32,"паспорт готовности дома","УК ООО \"ЭССЖ\"","Да",0,null,"2014-09-01",32,"паспорт готовности дома","УК ООО \"ЭССЖ\"",0,null,"2014-09-01",32,"паспорт готовности дома","УК ООО \"ЭССЖ\"",0,null,"2014-09-01",32,"паспорт готовности дома","УК ООО \"ЭССЖ\"",0,null,"2014-09-01",32,"паспорт готовности дома","УК ООО \"ЭССЖ\"",0,null,"2014-09-01",32,"паспорт готовности дома","УК ООО \"ЭССЖ\"","Нет",null,null,null,null,null,null,"Нет",null,null,null,null,null,null,"Да",0,null,"2014-09-01",32,"паспорт готовности дома","УК ООО \"ЭССЖ\"",0,null,"2014-09-01",32,"паспорт готовности дома","УК ООО \"ЭССЖ\"",0,null,"2014-09-01",32,"паспорт готовности дома","УК ООО \"ЭССЖ\"",0,null,"2014-09-01",32,"паспорт готовности дома","УК ООО \"ЭССЖ\"","Нет",0]
[19,"м","Пушкинский м.р.","Пушкино г.п.","Пушкино","Мамонтовка","НЕТ","Гоголевская",10,"НЕТ",null,"НЕТ","НЕТ",null,null,"НЕТ",null,141241,null,6520,1983,"крупно-панельный","ж/б блоки","мягкая плоская совмещенная","панели",4,4,null,5,null,null,162,75,null,"Нет",null,null,4890.2,574.29999999999995,null,817.6,null,null,null,null,817.6,null,null,null,null,null,null,75,63,12,null,18,44,13,null,null,null,null,null,null,null,null,null,null,null,null,null,null,null,null,null,null,null,null,null,null,null,null,"Решение собственников","Кальный В.К,","ООО УК \"ЭнергоСтройСервисЖильё\" (ООО УК \"ЭССЖ\")",1035007557914,503801001,5038040315,"8-496-580-02-45","М.обл.г.Пушкино,Московский проспект д.44","М.обл.г.Пушкино,Московский проспект д.44","http://essgh.ru","uk-essgh@ya.ru","2012-02-01","Да","ОАО \"Пушкинская Теплосеть\"","№48 от 01.06.2006",1125038000306,503801001,5038088317,"8-496-535-85-05","141205 М.обл.г.Пушкино пр.И.Арманд д.4","141205 М.обл.г.Пушкино пр.И.Арманд д.4",null,"teploset-p@mail.ru","момента ввода в эксплуатацию","ОАО \"Мосэнергосбыт\"",null,null,99745001,7736520080,"8-496-535-05-05","141200 М.обл. г.Пушкино ул.Островского д.22","117312 г.Москва ул.Вавилова д.9",null,"bazaleyin@mosenergosbyt.ru","с даты ввода в эксплуатацию","да","Филиал ГУП МО \"Мособлгаз\" Мытищинский межрайонный трест газового хозяйства\"",null,null,502902002,5000001317,"8-495-583-23-50","141002 М.обл. г.Мытищи ул.Белобородова д.6","141002 М.обл. г.Мытищи ул.Белобородова д.6","www.mytishchi.mosoblgaz.ru","mytischchi@mosoblgaz.ru","с даты ввода в эксплуатацию","Да","ОАО \"Пушкинская Теплосеть\"","№48 от 01.06.2006",1125038000306,503801001,5038088317,"8-496-535-85-05","141205 М.обл.г.Пушкино пр.И.Арманд д.4","141205 М.обл.г.Пушкино пр.И.Арманд д.4",null,"teploset-p@mail.ru","момента ввода в эксплуатацию","Да","МУП \"Пушкинский Водоканал\"\"",null,1075038013159,503801001,5038057693,"8-496-532-09-05","141200 М.обл.г.Пушкино ул.Учинская д.16","141200 М.обл.г.Пушкино ул.Учинская д.16",null,"push_vodokanal@mail.ru","с момента ввода в эксплуатацию","Да","МУП \"Пушкинский Водоканал\"\"",null,1075038013159,503801001,5038057693,"8-496-532-09-05","141200 М.обл.г.Пушкино ул.Учинская д.16","141200 М.обл.г.Пушкино ул.Учинская д.16",null,"push_vodokanal@mail.ru","с момента ввода в эксплуатацию","Нет",null,null,null,null,null,null,null,null,null,null,null,0,null,"2014-09-01",31,"паспорт готовности дома","УК ООО \"ЭССЖ\"","Да",0,null,"2014-09-01",31,"паспорт готовности дома","УК ООО \"ЭССЖ\"",0,null,"2014-09-01",31,"паспорт готовности дома","УК ООО \"ЭССЖ\"",0,null,"2014-09-01",31,"паспорт готовности дома","УК ООО \"ЭССЖ\"",0,null,"2014-09-01",31,"паспорт готовности дома","УК ООО \"ЭССЖ\"",0,null,"2014-09-01",31,"паспорт готовности дома","УК ООО \"ЭССЖ\"","Нет",null,null,null,null,null,null,"Нет",null,null,null,null,null,null,"Да",0,null,"2014-09-01",31,"паспорт готовности дома","УК ООО \"ЭССЖ\"",0,null,"2014-09-01",31,"паспорт готовности дома","УК ООО \"ЭССЖ\"",0,null,"2014-09-01",31,"паспорт готовности дома","УК ООО \"ЭССЖ\"",0,null,"2014-09-01",31,"паспорт готовности дома","УК ООО \"ЭССЖ\"","Нет",0]
[20,"м","Пушкинский м.р.","Пушкино г.п.","Пушкино","Мамонтовка","НЕТ","Гоголевская",12,"НЕТ",null,"НЕТ","НЕТ",null,null,"НЕТ",null,141241,null,6260,1986,"крупно-панельный","ж/б блоки","мягкая плоская совмещенная","панели",4,4,null,5,null,null,150,75,null,"Нет",null,null,4906.2,573.29999999999995,null,817.5,null,null,null,null,817.5,null,null,null,null,null,null,75,65,10,null,18,44,13,null,null,null,null,null,null,null,null,null,null,null,null,null,null,null,null,null,null,null,null,null,null,null,null,"Решение собственников","Кальный В.К,","ООО УК \"ЭнергоСтройСервисЖильё\" (ООО УК \"ЭССЖ\")",1035007557914,503801001,5038040315,"8-496-580-02-45","М.обл.г.Пушкино,Московский проспект д.44","М.обл.г.Пушкино,Московский проспект д.44","http://essgh.ru","uk-essgh@ya.ru","2012-02-01","Да","ОАО \"Пушкинская Теплосеть\"","№48 от 01.06.2006",1125038000306,503801001,5038088317,"8-496-535-85-05","141205 М.обл.г.Пушкино пр.И.Арманд д.4","141205 М.обл.г.Пушкино пр.И.Арманд д.4",null,"teploset-p@mail.ru","момента ввода в эксплуатацию","ОАО \"Мосэнергосбыт\"",null,null,99745001,7736520080,"8-496-535-05-05","141200 М.обл. г.Пушкино ул.Островского д.22","117312 г.Москва ул.Вавилова д.9",null,"bazaleyin@mosenergosbyt.ru","с даты ввода в эксплуатацию","да","Филиал ГУП МО \"Мособлгаз\" Мытищинский межрайонный трест газового хозяйства\"",null,null,502902002,5000001317,"8-495-583-23-50","141002 М.обл. г.Мытищи ул.Белобородова д.6","141002 М.обл. г.Мытищи ул.Белобородова д.6","www.mytishchi.mosoblgaz.ru","mytischchi@mosoblgaz.ru","с даты ввода в эксплуатацию","Да","ОАО \"Пушкинская Теплосеть\"","№48 от 01.06.2006",1125038000306,503801001,5038088317,"8-496-535-85-05","141205 М.обл.г.Пушкино пр.И.Арманд д.4","141205 М.обл.г.Пушкино пр.И.Арманд д.4",null,"teploset-p@mail.ru","момента ввода в эксплуатацию","Да","МУП \"Пушкинский Водоканал\"\"",null,1075038013159,503801001,5038057693,"8-496-532-09-05","141200 М.обл.г.Пушкино ул.Учинская д.16","141200 М.обл.г.Пушкино ул.Учинская д.16",null,"push_vodokanal@mail.ru","с момента ввода в эксплуатацию","Да","МУП \"Пушкинский Водоканал\"\"",null,1075038013159,503801001,5038057693,"8-496-532-09-05","141200 М.обл.г.Пушкино ул.Учинская д.16","141200 М.обл.г.Пушкино ул.Учинская д.16",null,"push_vodokanal@mail.ru","с момента ввода в эксплуатацию","Нет",null,null,null,null,null,null,null,null,null,null,null,0,null,"2014-09-01",28,"паспорт готовности дома","УК ООО \"ЭССЖ\"","Да",0,null,"2014-09-01",28,"паспорт готовности дома","УК ООО \"ЭССЖ\"",0,null,"2014-09-01",28,"паспорт готовности дома","УК ООО \"ЭССЖ\"",0,null,"2014-09-01",28,"паспорт готовности дома","УК ООО \"ЭССЖ\"",0,null,"2014-09-01",28,"паспорт готовности дома","УК ООО \"ЭССЖ\"",0,null,"2014-09-01",28,"паспорт готовности дома","УК ООО \"ЭССЖ\"","Нет",null,null,null,null,null,null,"Нет",null,null,null,null,null,null,"Да",0,null,"2014-09-01",28,"паспорт готовности дома","УК ООО \"ЭССЖ\"",0,null,"2014-09-01",28,"паспорт готовности дома","УК ООО \"ЭССЖ\"",0,null,"2014-09-01",28,"паспорт готовности дома","УК ООО \"ЭССЖ\"",0,null,"2014-09-01",28,"паспорт готовности дома","УК ООО \"ЭССЖ\"","Нет",0]
[21,"м","Пушкинский м.р.","Тарасовское с.п.","с.п.Тарасовское",null,"НЕТ","Центральная",7,"НЕТ",null,"НЕТ","НЕТ",null,null,"НЕТ",null,141221,null,876.4,2004,"кирпичный","ж/б блоки","мягкая плоская совмещенная","кирпич",3,3,null,4,null,null,80,40,null,"Нет",null,null,3250.8,188.8,null,664.7,null,null,null,null,664.7,null,null,null,null,null,null,40,40,4,null,null,28,12,null,null,null,null,null,null,null,null,null,null,null,null,null,null,null,null,null,null,null,null,null,null,null,null,"Решение собственников","Кальный В.К,","ООО УК \"ЭнергоСтройСервисЖильё\" (ООО УК \"ЭССЖ\")",1035007557914,503801001,5038040315,"8-496-580-02-45","М.обл.г.Пушкино,Московский проспект д.44","М.обл.г.Пушкино,Московский проспект д.44","http://essgh.ru","uk-essgh@ya.ru","2009-01-01","Да","ОАО \"Пушкинская Теплосеть\"","№48 от 01.06.2006",1125038000306,503801001,5038088317,"8-496-535-85-05","141205 М.обл.г.Пушкино пр.И.Арманд д.4","141205 М.обл.г.Пушкино пр.И.Арманд д.4",null,"teploset-p@mail.ru","момента ввода в эксплуатацию","ОАО \"Мосэнергосбыт\"",null,null,99745001,7736520080,"8-496-535-05-05","141200 М.обл. г.Пушкино ул.Островского д.22","117312 г.Москва ул.Вавилова д.9",null,"bazaleyin@mosenergosbyt.ru","с даты ввода в эксплуатацию","да","Филиал ГУП МО \"Мособлгаз\" Мытищинский межрайонный трест газового хозяйства\"",null,null,502902002,5000001317,"8-495-583-23-50","141002 М.обл. г.Мытищи ул.Белобородова д.6","141002 М.обл. г.Мытищи ул.Белобородова д.6","www.mytishchi.mosoblgaz.ru","mytischchi@mosoblgaz.ru","с даты ввода в эксплуатацию","Да","ОАО \"Пушкинская Теплосеть\"","№48 от 01.06.2006",1125038000306,503801001,5038088317,"8-496-535-85-05","141205 М.обл.г.Пушкино пр.И.Арманд д.4","141205 М.обл.г.Пушкино пр.И.Арманд д.4",null,"teploset-p@mail.ru","момента ввода в эксплуатацию","Да","МУП \"Пушкинский Водоканал\"\"",null,1075038013159,503801001,5038057693,"8-496-532-09-05","141200 М.обл.г.Пушкино ул.Учинская д.16","141200 М.обл.г.Пушкино ул.Учинская д.16",null,"push_vodokanal@mail.ru","с момента ввода в эксплуатацию","Да","МУП \"Пушкинский Водоканал\"\"",null,1075038013159,503801001,5038057693,"8-496-532-09-05","141200 М.обл.г.Пушкино ул.Учинская д.16","141200 М.обл.г.Пушкино ул.Учинская д.16",null,"push_vodokanal@mail.ru","с момента ввода в эксплуатацию","Нет",null,null,null,null,null,null,null,null,null,null,null,0,null,"2014-09-01",10,"паспорт готовности дома","УК ООО \"ЭССЖ\"","Да",0,null,"2014-09-01",10,"паспорт готовности дома","УК ООО \"ЭССЖ\"",0,null,"2014-09-01",10,"паспорт готовности дома","УК ООО \"ЭССЖ\"",0,null,"2014-09-01",10,"паспорт готовности дома","УК ООО \"ЭССЖ\"",0,null,"2014-09-01",10,"паспорт готовности дома","УК ООО \"ЭССЖ\"",0,null,"2014-09-01",10,"паспорт готовности дома","УК ООО \"ЭССЖ\"","Нет",null,null,null,null,null,null,"Нет",null,null,null,null,null,null,"Да",0,null,"2014-09-01",10,"паспорт готовности дома","УК ООО \"ЭССЖ\"",0,null,"2014-09-01",10,"паспорт готовности дома","УК ООО \"ЭССЖ\"",0,null,"2014-09-01",10,"паспорт готовности дома","УК ООО \"ЭССЖ\"",0,null,"2014-09-01",10,"паспорт готовности дома","УК ООО \"ЭССЖ\"","Нет",0]
[22,"м","Пушкинский м.р.","Тарасовское с.п.","с.п.Тарасовское",null,"НЕТ","Центральная",10,"НЕТ",null,"НЕТ","НЕТ",null,null,"НЕТ",null,141221,null,880.6,1994,"кирпичный","ж/б блоки","мягкая плоская совмещенная","кирпич",3,3,null,4,null,null,88,44,null,"Нет",null,null,3325.7,201.4,null,819.4,null,null,null,null,819.4,null,null,null,null,null,null,44,44,null,null,4,28,12,null,null,null,null,null,null,null,null,null,null,null,null,null,null,null,null,null,null,null,null,null,null,null,null,"Решение собственников","Кальный В.К,","ООО УК \"ЭнергоСтройСервисЖильё\" (ООО УК \"ЭССЖ\")",1035007557914,503801001,5038040315,"8-496-580-02-45","М.обл.г.Пушкино,Московский проспект д.44","М.обл.г.Пушкино,Московский проспект д.44","http://essgh.ru","uk-essgh@ya.ru","2010-02-01","Да","ОАО \"Пушкинская Теплосеть\"","№48 от 01.06.2006",1125038000306,503801001,5038088317,"8-496-535-85-05","141205 М.обл.г.Пушкино пр.И.Арманд д.4","141205 М.обл.г.Пушкино пр.И.Арманд д.4",null,"teploset-p@mail.ru","момента ввода в эксплуатацию","ОАО \"Мосэнергосбыт\"",null,null,99745001,7736520080,"8-496-535-05-05","141200 М.обл. г.Пушкино ул.Островского д.22","117312 г.Москва ул.Вавилова д.9",null,"bazaleyin@mosenergosbyt.ru","с даты ввода в эксплуатацию","да","Филиал ГУП МО \"Мособлгаз\" Мытищинский межрайонный трест газового хозяйства\"",null,null,502902002,5000001317,"8-495-583-23-50","141002 М.обл. г.Мытищи ул.Белобородова д.6","141002 М.обл. г.Мытищи ул.Белобородова д.6","www.mytishchi.mosoblgaz.ru","mytischchi@mosoblgaz.ru","с даты ввода в эксплуатацию","Да","ОАО \"Пушкинская Теплосеть\"","№48 от 01.06.2006",1125038000306,503801001,5038088317,"8-496-535-85-05","141205 М.обл.г.Пушкино пр.И.Арманд д.4","141205 М.обл.г.Пушкино пр.И.Арманд д.4",null,"teploset-p@mail.ru","момента ввода в эксплуатацию","Да","МУП \"Пушкинский Водоканал\"\"",null,1075038013159,503801001,5038057693,"8-496-532-09-05","141200 М.обл.г.Пушкино ул.Учинская д.16","141200 М.обл.г.Пушкино ул.Учинская д.16",null,"push_vodokanal@mail.ru","с момента ввода в эксплуатацию","Да","МУП \"Пушкинский Водоканал\"\"",null,1075038013159,503801001,5038057693,"8-496-532-09-05","141200 М.обл.г.Пушкино ул.Учинская д.16","141200 М.обл.г.Пушкино ул.Учинская д.16",null,"push_vodokanal@mail.ru","с момента ввода в эксплуатацию","Нет",null,null,null,null,null,null,null,null,null,null,null,0,null,"2014-08-01",20,"паспорт готовности дома","УК ООО \"ЭССЖ\"","Да",0,null,"2014-08-01",20,"паспорт готовности дома","УК ООО \"ЭССЖ\"",0,null,"2014-08-01",20,"паспорт готовности дома","УК ООО \"ЭССЖ\"",0,null,"2014-08-01",20,"паспорт готовности дома","УК ООО \"ЭССЖ\"",0,null,"2014-08-01",20,"паспорт готовности дома","УК ООО \"ЭССЖ\"",0,null,"2014-08-01",20,"паспорт готовности дома","УК ООО \"ЭССЖ\"","Нет",null,null,null,null,null,null,"Нет",null,null,null,null,null,null,"Да",0,null,"2014-08-01",20,"паспорт готовности дома","УК ООО \"ЭССЖ\"",0,null,"2014-08-01",20,"паспорт готовности дома","УК ООО \"ЭССЖ\"",0,null,"2014-08-01",20,"паспорт готовности дома","УК ООО \"ЭССЖ\"",0,null,"2014-08-01",20,"паспорт готовности дома","УК ООО \"ЭССЖ\"","Нет",0]
[23,"м","Пушкинский м.р.","Ельдигинское с.п.","с.Ельдигино","Ельдигино","НЕТ","Парковая",1,"НЕТ",null,"НЕТ","НЕТ",null,null,"НЕТ",null,141255,null,420,2012,"типовой блочный","ж/б блоки","металлочерепица","блоки",2,2,null,3,null,null,42,21,null,"Нет",null,null,1258.5,134.80000000000001,null,29.2,null,null,null,null,29.2,null,null,null,null,null,null,21,21,null,null,12,6,3,null,null,null,null,null,null,null,null,null,null,null,null,null,null,null,null,null,null,null,null,null,null,null,null,"Решение собственников","Кальный В.К,","ООО УК \"ЭнергоСтройСервисЖильё\" (ООО УК \"ЭССЖ\")",1035007557914,503801001,5038040315,"8-496-580-02-45","М.обл.г.Пушкино,Московский проспект д.44","М.обл.г.Пушкино,Московский проспект д.44","http://essgh.ru","uk-essgh@ya.ru","2013-08-01","нет",null,null,null,null,null,null,null,null,null,null,null,"ОАО \"Мосэнергосбыт\"",null,null,99745001,7736520080,"8-496-535-05-05","141200 М.обл. г.Пушкино ул.Островского д.22","117312 г.Москва ул.Вавилова д.9",null,"bazaleyin@mosenergosbyt.ru","с даты ввода в эксплуатацию","Нет",null,null,null,null,null,null,null,null,null,null,null,"Нет",null,null,null,null,null,null,null,null,null,null,null,"Да","МУП \"Пушкинский Водоканал\"\"",null,1075038013159,503801001,5038057693,"8-496-532-09-05","141200 М.обл.г.Пушкино ул.Учинская д.16","141200 М.обл.г.Пушкино ул.Учинская д.16",null,"push_vodokanal@mail.ru","с момента ввода в эксплуатацию","Да","МУП \"Пушкинский Водоканал\"\"",null,1075038013159,503801001,5038057693,"8-496-532-09-05","141200 М.обл.г.Пушкино ул.Учинская д.16","141200 М.обл.г.Пушкино ул.Учинская д.16",null,"push_vodokanal@mail.ru","с момента ввода в эксплуатацию","Нет",null,null,null,null,null,null,null,null,null,null,null,0,null,"2014-09-01",2,"паспорт готовности дома","УК ООО \"ЭССЖ\"","Да",0,null,"2014-09-01",2,"паспорт готовности дома","УК ООО \"ЭССЖ\"",0,null,"2014-09-01",2,"паспорт готовности дома","УК ООО \"ЭССЖ\"",0,null,"2014-09-01",2,"паспорт готовности дома","УК ООО \"ЭССЖ\"",0,null,"2014-09-01",2,"паспорт готовности дома","УК ООО \"ЭССЖ\"",0,null,"2014-09-01",2,"паспорт готовности дома","УК ООО \"ЭССЖ\"","Нет",null,null,null,null,null,null,"Да",0,null,"2014-09-01",2,"паспорт готовности дома","УК ООО \"ЭССЖ\"","Да",0,null,"2014-09-01",2,"паспорт готовности дома","УК ООО \"ЭССЖ\"",0,null,"2014-09-01",2,"паспорт готовности дома","УК ООО \"ЭССЖ\"",0,null,"2014-09-01",2,"паспорт готовности дома","УК ООО \"ЭССЖ\"",0,null,"2014-09-01",2,"паспорт готовности дома","УК ООО \"ЭССЖ\"","Нет",0]

{"sheet":"Лифты","index":1,"n_rows":46,"n_cols":31,"rows_kept":46,"cut":false,"hidden":false,"merged":[[2,14,3,14],[2,9,3,9],[1,24,3,24],[2,8,3,8],[1,22,3,22],[2,10,2,12],[1,4,1,17],[1,18,2,19],[1,20,3,20],[1,21,3,21],[2,15,3,15],[2,16,3,16],[2,4,3,4],[0,0,0,30],[1,0,3,0],[1,1,3,1],[1,2,3,2],[1,3,3,3],[2,17,3,17],[2,13,3,13],[1,29,3,29],[1,23,3,23],[1,28,3,28],[1,25,2,26],[1,27,3,27],[1,30,3,30],[2,5,3,5],[2,6,3,6],[2,7,3,7]]}
["Форма предоставления сведений о техническом состоянии лифтового оборудования в многоквартирных домах, расположенных на территории Московской области"]
["Порядковый номер","Порядковый номер лифта (в пределах дома)","Наименование муниципального района Московской области (городского округа)\n(выбирается из списка)","Наименование муниципального образования — поселения (городского, сельского), входящего в состав муниципального района Московской  области\n(выбирается из списка в зависимости от выбранного значения столбца 3)","Почтовый адрес дома",null,null,null,null,null,null,null,null,null,null,null,null,null,"Организация, занимающаяся обслуживанием лифтового оборудования.",null,"Номер подъезда.\n(целое число больше ноля)","Заводской номер лифта. (согласно техническому паспорту)","Количество остановок лифта.\n(целое число)","Тип лифта. (пассажирский, грузопассажирский)","Год ввода лифта в эксплуатацию.\n(четырехзначное число)","капитальный ремонт",null,"дата последнего технического освидетельствования лифта","результы последнего технического освидетельствования технического состояния лифта и лифтового оборудования","сведения об организации, проводившей техническое освидетельствование лифта","Примечания"]
[null,null,null,null,"Наименование населенного пункта (город, село, поселок, деревня, военный городок)","Микрорайон","Квартал","Улица, переулок, тупик, набережная, проезд, проспект, бульвар","Номер дома\n(целое число)","Литера","Дробный адрес",null,null,"Владение\n(целое число)","Номер корпуса\n(целое число)","Литера корпуса","Строение\n(целое число)","Почтовый индекс\n(шестизначное число без пробелов)"]
[null,null,null,null,null,null,null,null,null,null,"Дробный номер дома\n(целое число)","Литера дробного номера","Дробная улица (переулок, бульвар и т.д.)",null,null,null,null,null,"Наименование лица","ОГРН",null,null,null,null,null,"год проведения последнего капитального ремонта\n(четырехзначное число)","перечень выполненных работ"]
[1,2,3,4,5,6,7,8,9,10,11,12,13,14,15,16,17,18,19,20,21,22,23,24,25,26,27,28,29,30,31]
[]
[1,1,"Пушкинский м.р.","Пушкино г.п.","г.Пушкино",null,null,"Московский проспект",44,null,null,null,null,null,null,null,null,141205,"нет","нет",1,59130,16,"Пассажирский",2005,2010,"замена КВШ",2014,"разрешен","ООО ЭО \"Колис\""]
[2,2,"Пушкинский м.р.","Пушкино г.п.","г.Пушкино",null,null,"Московский проспект",44,null,null,null,null,null,null,null,null,141205,"нет","нет",1,32952,16,"Грузопассажирский",2005,0,0,2014,"разрешен","ООО ЭО \"Колис\""]
[3,3,"Пушкинский м.р.","Пушкино г.п.","г.Пушкино",null,null,"Московский проспект",44,null,null,null,null,null,null,null,null,141205,"нет","нет",2,59129,12,"Пассажирский",2005,0,0,2014,"разрешен","ООО ЭО \"Колис\""]
[4,4,"Пушкинский м.р.","Пушкино г.п.","г.Пушкино",null,null,"Московский проспект",44,null,null,null,null,null,null,null,null,141205,"нет","нет",2,32951,12,"Грузопассажирский",2005,0,0,2014,"разрешен","ООО ЭО \"Колис\""]
[5,5,"Пушкинский м.р.","Пушкино г.п.","г.Пушкино",null,null,"Московский проспект",44,null,null,null,null,null,null,null,null,141205,"нет","нет",3,59131,12,"Пассажирский",2005,0,0,2014,"разрешен","ООО ЭО \"Колис\""]
[6,6,"Пушкинский м.р.","Пушкино г.п.","г.Пушкино",null,null,"Московский проспект",44,null,null,null,null,null,null,null,null,141205,"нет","нет",3,32953,12,"Грузопассажирский",2005,0,0,2014,"разрешен","ООО ЭО \"Колис\""]
[7,1,"Пушкинский м.р.","Пушкино г.п.","г.Пушкино",null,null,"Рязанова проезд",3,null,null,null,null,null,null,null,null,141205,"нет","нет",1,33740,9,"Грузопассажирский",2006,0,0,2014,"разрешен","ООО ЭО \"Колис\""]
[8,2,"Пушкинский м.р.","Пушкино г.п.","г.Пушкино",null,null,"Рязанова проезд",3,null,null,null,null,null,null,null,null,141205,"нет","нет",2,33741,9,"Грузопассажирский",2006,0,0,2014,"разрешен","ООО ЭО \"Колис\""]
[9,1,"Пушкинский м.р.","Пушкино г.п.","г.Пушкино","Серебрянка",null,null,48,null,null,null,null,null,1,null,null,141200,"нет","нет",1,34,14,"Грузопассажирский",2010,0,0,2013,"разрешен","ООО \"Эксперт-Центр\""]
[10,2,"Пушкинский м.р.","Пушкино г.п.","г.Пушкино","Серебрянка",null,null,48,null,null,null,null,null,1,null,null,141200,"нет","нет",1,33,14,"Пассажирский",2010,0,0,2013,"разрешен","ООО \"Эксперт-Центр\""]
[11,3,"Пушкинский м.р.","Пушкино г.п.","г.Пушкино","Серебрянка",null,null,48,null,null,null,null,null,1,null,null,141200,"нет","нет",2,35,14,"Грузопассажирский",2010,0,0,2013,"разрешен","ООО \"Эксперт-Центр\""]
[12,4,"Пушкинский м.р.","Пушкино г.п.","г.Пушкино","Серебрянка",null,null,48,null,null,null,null,null,1,null,null,141200,"нет","нет",2,31,14,"Пассажирский",2010,0,0,2013,"разрешен","ООО \"Эксперт-Центр\""]
[13,5,"Пушкинский м.р.","Пушкино г.п.","г.Пушкино","Серебрянка",null,null,48,null,null,null,null,null,1,null,null,141200,"нет","нет",3,29,14,"Грузопассажирский",2010,0,0,2013,"разрешен","ООО \"Эксперт-Центр\""]
[14,6,"Пушкинский м.р.","Пушкино г.п.","г.Пушкино","Серебрянка",null,null,48,null,null,null,null,null,1,null,null,141200,"нет","нет",3,32,14,"Пассажирский",2010,0,0,2013,"разрешен","ООО \"Эксперт-Центр\""]
[15,1,"Пушкинский м.р.","Пушкино г.п.","г.Пушкино","Серебрянка",null,null,48,null,null,null,null,null,2,null,null,141200,"нет","нет",1,736210843,14,"Грузопассажирский",2013,0,0,2013,"разрешен","ООО \"Эксперт-Центр\""]
[16,2,"Пушкинский м.р.","Пушкино г.п.","г.Пушкино","Серебрянка",null,null,48,null,null,null,null,null,2,null,null,141200,"нет","нет",1,734110842,14,"Пассажирский",2013,0,0,2013,"разрешен","ООО \"Эксперт-Центр\""]
[17,3,"Пушкинский м.р.","Пушкино г.п.","г.Пушкино","Серебрянка",null,null,48,null,null,null,null,null,2,null,null,141200,"нет","нет",2,736210845,17,"Грузопассажирский",2013,0,0,2013,"разрешен","ООО \"Эксперт-Центр\""]
[18,4,"Пушкинский м.р.","Пушкино г.п.","г.Пушкино","Серебрянка",null,null,48,null,null,null,null,null,2,null,null,141200,"нет","нет",2,734110844,17,"Пассажирский",2013,0,0,2013,"разрешен","ООО \"Эксперт-Центр\""]
[19,5,"Пушкинский м.р.","Пушкино г.п.","г.Пушкино","Серебрянка",null,null,48,null,null,null,null,null,2,null,null,141200,"нет","нет",3,62691,22,"Грузопассажирский",2013,0,0,2014,"разрешен","ООО ЭО \"Колис\""]
[20,6,"Пушкинский м.р.","Пушкино г.п.","г.Пушкино","Серебрянка",null,null,48,null,null,null,null,null,2,null,null,141200,"нет","нет",3,736260850,22,"Грузопассажирский",2013,0,0,2014,"разрешен","ООО ЭО \"Колис\""]
[21,7,"Пушкинский м.р.","Пушкино г.п.","г.Пушкино","Серебрянка",null,null,48,null,null,null,null,null,2,null,null,141200,"нет","нет",3,734160849,22,"Пассажирский",2013,0,0,2014,"разрешен","ООО ЭО \"Колис\""]
[22,8,"Пушкинский м.р.","Пушкино г.п.","г.Пушкино","Серебрянка",null,null,48,null,null,null,null,null,2,null,null,141200,"нет","нет",4,736260847,18,"Грузопассажирский",2013,0,0,2014,"разрешен","ООО ЭО \"Колис\""]
[23,9,"Пушкинский м.р.","Пушкино г.п.","г.Пушкино","Серебрянка",null,null,48,null,null,null,null,null,2,null,null,141200,"нет","нет",4,734160846,18,"Пассажирский",2013,0,0,2014,"разрешен","ООО ЭО \"Колис\""]
[24,10,"Пушкинский м.р.","Пушкино г.п.","г.Пушкино","Серебрянка",null,null,48,null,null,null,null,null,2,null,null,141200,"нет","нет",4,91,18,"Грузопассажирский",2013,0,0,2013,"разрешен","ООО \"Эксперт-Центр\""]
[25,1,"Пушкинский м.р.","Пушкино г.п.","г.Пушкино","Серебрянка",null,null,49,null,null,null,null,null,null,null,null,141200,"нет","нет",1,12,11,"Грузопассажирский",2006,0,0,2013,"разрешен","ООО \"Эксперт-Центр\""]
[26,2,"Пушкинский м.р.","Пушкино г.п.","г.Пушкино","Серебрянка",null,null,49,null,null,null,null,null,null,null,null,141200,"нет","нет",2,13,11,"Грузопассажирский",2006,0,0,2013,"разрешен","ООО \"Эксперт-Центр\""]
[27,3,"Пушкинский м.р.","Пушкино г.п.","г.Пушкино","Серебрянка",null,null,49,null,null,null,null,null,null,null,null,141200,"нет","нет",3,14,11,"Грузопассажирский",2006,0,0,2013,"разрешен","ООО \"Эксперт-Центр\""]
[28,1,"Пушкинский м.р.","Пушкино г.п.","г.Пушкино","Заветы Ильича",null,"Степана Разина улица",3,null,null,null,null,null,null,null,null,141207,"нет","нет",1,"нет",9,"Пассажирский",null,0,0,0,"запрещен","нет"]
[29,1,"Пушкинский м.р.","Правдинский г.п.","г.п.Правдинский",null,null,"Герцена улица",1,null,null,null,null,null,null,null,null,141260,"нет","нет",1,76143,9,"Пассажирский",2006,0,0,2014,"разрешен","ООО ЭО \"Колис\""]
[30,2,"Пушкинский м.р.","Правдинский г.п.","г.п.Правдинский",null,null,"Герцена улица",1,null,null,null,null,null,null,null,null,141260,"нет","нет",2,76142,9,"Пассажирский",2006,0,0,2014,"разрешен","ООО ЭО \"Колис\""]
[31,1,"Пушкинский м.р.","Правдинский г.п.","г.п.Правдинский",null,null,"Герцена улица",30,null,null,null,null,null,1,null,null,141260,"нет","нет",1,62100024,10,"Грузопассажирский",2011,0,0,2013,"разрешен","ООО \"Эксперт-Центр\""]
[32,2,"Пушкинский м.р.","Правдинский г.п.","г.п.Правдинский",null,null,"Герцена улица",30,null,null,null,null,null,1,null,null,141260,"нет","нет",2,62100025,10,"Грузопассажирский",2011,0,0,2013,"разрешен","ООО \"Эксперт-Центр\""]
[33,3,"Пушкинский м.р.","Правдинский г.п.","г.п.Правдинский",null,null,"Герцена улица",30,null,null,null,null,null,1,null,null,141260,"нет","нет",3,62100023,10,"Грузопассажирский",2011,0,0,2013,"разрешен","ООО \"Эксперт-Центр\""]
[34,4,"Пушкинский м.р.","Правдинский г.п.","г.п.Правдинский",null,null,"Герцена улица",30,null,null,null,null,null,1,null,null,141260,"нет","нет",4,62100022,10,"Грузопассажирский",2011,0,0,2013,"разрешен","ООО \"Эксперт-Центр\""]
[35,1,"Пушкинский м.р.","Правдинский г.п.","г.п.Правдинский",null,null,"Герцена улица",30,null,null,null,null,null,2,null,null,141260,"нет","нет",1,36822,10,"Грузопассажирский",2012,0,0,2014,"разрешен","ООО ЭО \"Колис\""]
[36,2,"Пушкинский м.р.","Правдинский г.п.","г.п.Правдинский",null,null,"Герцена улица",30,null,null,null,null,null,2,null,null,141260,"нет","нет",2,36821,10,"Грузопассажирский",2012,0,0,2014,"разрешен","ООО ЭО \"Колис\""]
[37,3,"Пушкинский м.р.","Правдинский г.п.","г.п.Правдинский",null,null,"Герцена улица",30,null,null,null,null,null,2,null,null,141260,"нет","нет",3,36823,10,"Грузопассажирский",2012,0,0,2014,"разрешен","ООО ЭО \"Колис\""]
[38,1,"Пушкинский м.р.","Правдинский г.п.","г.п.Правдинский",null,null,"1-я Проектная улица",88,null,null,null,null,null,null,null,null,141260,"нет","нет",1,22289,9,"Грузопассажирский",2010,0,0,2014,"разрешен","ООО ЭО \"Колис\""]
[39,2,"Пушкинский м.р.","Правдинский г.п.","г.п.Правдинский",null,null,"1-я Проектная улица",88,null,null,null,null,null,null,null,null,141260,"нет","нет",2,22290,9,"Грузопассажирский",2010,0,0,2014,"разрешен","ООО ЭО \"Колис\""]
[40,3,"Пушкинский м.р.","Правдинский г.п.","г.п.Правдинский",null,null,"1-я Проектная улица",88,null,null,null,null,null,null,null,null,141260,"нет","нет",3,22478,9,"Грузопассажирский",2010,0,0,2014,"разрешен","ООО ЭО \"Колис\""]

{"sheet":"списки","index":2,"n_rows":74,"n_cols":43,"rows_kept":74,"cut":false,"hidden":true,"merged":[[0,0,0,3]]}
["Варианты стандартных ответов"]
["столбцы № ","столбцы № ","столбец № 2 ","столбец № 81","форма2\nстолбец № 23",null,"образования","волоколамский","воскресенский","дмитровский","егорьевский","зарайский","истринский","каширский","клинский","коломенский","красногорский","ленинский","лотошинский","луховицкий","люберецкий","можайский","мытищинский","наро-фоминский","ногинский","одинцовский","озерский","орехово-зуевский","павлово-посадский","подольский","пушкинский","раменский","рузский","сергиево-посадский","серебряно-прудский","серпуховский","солнечногорский","ступинский","талдомский","чеховский","шатурский","шаховской","щелковский"]
["Да","Да","М","A","Пассажирский",null,"Балашиха г.о.","Волоколамск г.п.","Белоозерский г.п.","Деденёво г.п.","Егорьевск г.п.","Зарайск г.п.","Дедовск г.п.","Кашира г.п.","Высоковск г.п.","Пески г.п.","Красногорск г.п.","Видное г.п.","Лотошино г.п.","Белоомут г.п.","Красково г.п.","Можайск г.п.","Мытищи г.п.","Апрелевка г.п.","им. Воровского г.п.","Большие Вязёмы г.п.","Озёры г.п.","Дрезна г.п.","Большие Дворы г.п.","Львовский г.п.","Ашукино г.п.","Быково г.п.","Руза г.п.","Богородское г.п.","Серебряные Пруды г.п.","Оболенск г.п.","Андреевка г.п.","Жилево г.п.","Вербилки г.п.","Столбовая г.п.","Мишеронский г.п.","Шаховская г.п.","Загорянский г.п."]
["Нет","Нет. Установка возможна.","Б","B","Грузопассажирский",null,"Бронницы г.о.","Сычёво г.п.","Воскресенск г.п.","Дмитров г.п.","Рязановский г.п.","Гололобовское с.п.","Истра г.п.","Ожерелье г.п.","Клин г.п.","Акатьевское с.п.","Нахабино г.п.","Горки Ленинские г.п.","Микулинское с.п.","Луховицы г.п.","Люберцы г.п.","Уваровка г.п.","Пироговский г.п.","Верея г.п.","Ногинск г.п.","Голицино г.п.","Бояркинское с.п.","Куровское г.п.","Павловский Посад г.п.","Дубровицкое с.п.","Зеленоградский г.п.","Ильинский г.п.","Тучково г.п.","Краснозаводск г.п.","Мочильское с.п.","Пролетарский г.п.","Менделеево г.п.","Малино г.п.","Запрудня г.п.","Чехов г.п.","Черусти г.п.","Раменское с.п.","Монино г.п."]
[null,"Нет. Установка невозможна.","А","B+",null,null,"Власиха ЗАТО г.о.","Кашинское с.п.","Хорлово г.п.","Икша г.п.","Раменское с.п.","Каринское с.п.","Снегири г.п.","Базаровское с.п.","Решетниково г.п.","Биорковское с.п.","Ильинское с.п.","Булатниковское с.п.","Ошейкинское с.п.","Астаповское с.п.","Малаховка г.п.","Борисовское с.п.","Федоскинское с.п.","Калининец г.п.","Обухово г.п.","Заречье г.п.","Клишинское с.п.","Ликино-Дулево г.п.","Аверкиевское с.п.","Лаговское с.п.","Лесной г.п.","Кратово г.п.","Волковское с.п.","Пересвет г.п.","Узуновское с.п.","Васильевское с.п.","Поварово г.п.","Ступино г.п.","Северный г.п.","Баранцевское с.п.","Шатура г.п.","Серединское с.п.","Свердловский г.п."]
[null,"Услуга не оказывается.","С","B++",null,null,"Волоколамский м.р.","Осташевское с.п.","им. Цюрупы г.п.","Некрасовский г.п.","Саввинское с.п.","Машоновское с.п.","Бужаровское с.п.","Домнинское с.п.","Воздвиженское с.п.","Заруденское с.п.","Отрадненское с.п.","Володарское с.п.",null,"Газопроводское с.п.","Октябрьский г.п.","Бородинское с.п.",null,"Наро-Фоминск г.п.","Старая Купавна г.п.","Кубинка г.п.",null,"Белавинское с.п.","Кузнецовское с.п.","Стрелковское с.п.","Правдинский г.п.","Раменское г.п.","Дороховское с.п.","Сергиев Посад г.п.","Успенское с.п.","Данковское с.п.","Ржавки г.п.","Михнево г.п.","Талдом г.п.","Любучанское с.п.","Дмитровское с.п.","Степаньковское с.п.","Фряново г.п."]
[null,null,null,"C",null,null,"Воскресенский м.р.","Спасское с.п.","Ашитковское с.п.","Яхрома г.п.","Юрцовское с.п.","Струпненское с.п.","Букаревское с.п.","Знаменское с.п.","Воронинское с.п.","Непеценское с.п.",null,"Молоковское с.п.",null,"Головачевское с.п.","Томилино г.п.","Горетовское с.п.",null,"Селятино г.п.","Электроугли г.п.","Лесной Городок г.п.",null,"Верейское с.п.","Рахмановское с.п.",null,"Пушкино г.п.","Родники г.п.","Ивановское с.п.","Скоропусковский г.п.",null,"Дашковское с.п.","Солнечногорск г.п.","Аксиньинское с.п.","Гуслевское с.п.","Стремиловское с.п.","Кривандинское с.п.",null,"Щелково г.п."]
[null,null,null,"D",null,null,"Восход ЗАТО г.о.","Теряевское с.п.","Фединское с.п.","Большерогачевское с.п.",null,null,"Ермолинское с.п.","Колтовское с.п.","Зубовское с.п.","Пестриковское с.п.",null,"Развилковское с.п.",null,"Дединовское с.п.",null,"Дровнинское с.п.",null,"Атепцевское с.п.","Аксено-Бутырское с.п.","Новоивановское г.п.",null,"Горское с.п.","Улитинское с.п.",null,"Софрино г.п.","Удельная г.п.","Колюбакинское с.п.","Хотьково г.п.",null,"Калиновское с.п.","Кривцовское с.п.","Леонтьевское с.п.","Ермолинское с.п.",null,"Пышлицкое с.п.",null,"Анискинское с.п."]
[null,null,null,"E",null,null,"Дзержинский г.о.","Чисменское с.п.",null,"Габовское с.п.",null,null,"Ивановское с.п.","Топкановское с.п.","Нудольское с.п.","Проводниковское с.п.",null,"Совхоз им. Ленина с.п.",null,"Краснопоймовское с.п.",null,"Замошинское с.п.",null,"Веселёвское с.п.","Буньковское с.п.","Одинцово г.п.",null,"Давыдовское с.п.",null,null,"Черкизово г.п.","Верейское с.п.","Старорузское с.п.","Березняковское с.п.",null,"Липицкое с.п.","Кутузовское с.п.","Семеновское с.п.","Темповое с.п.",null,"Радовицкое с.п.",null,"Гребневское с.п."]
[null,null,null,"Класс не присвоен.",null,null,"Дмитровский м.р.","Ярополецкое с.п.",null,"Костинское с.п.",null,null,"Костровское с.п.",null,"Петровское с.п.","Радужное с.п.",null,null,null,"Фруктовское с.п.",null,"Клементьевское с.п.",null,"Волчёнковское с.п.","Мамонтовское сп.","Барвихинское с.п.",null,"Демиховское с.п.",null,null,"Ельдигинское с.п.","Вялковское с.п.",null,"Васильевское с.п.",null,null,"Луневское с.п.",null,"Квашёнковское с.п.",null,null,null,"Медвежье-Озерское с.п."]
[null,null,null,"Нет данных.",null,null,"Долгопрудный г.о.",null,null,"Куликовское с.п.",null,null,"Лучинское с.п.",null,null,"Хорошовское с.п.",null,null,null,null,null,"Порецкое с.п.",null,"Ташировское с.п.","Стёпановское с.п.","Горское с.п.",null,"Дороховское с.п.",null,null,"Тарасовское с.п.","Ганусовское с.п.",null,"Лозовское с.п.",null,null,"Пешковское с.п.",null,null,null,null,null,"Огудневское с.п."]
[null,null,null,null,null,null,"Домодедово г.о.",null,null,"Синьковское с.п.",null,null,"Новопетровское с.п.",null,null,null,null,null,null,null,null,"Спутник с.п.",null,null,"Ямкинское с.п.","Ершовское с.п.",null,"Ильинское с.п.",null,null,"Царевское с.п.","Гжельское с.п.",null,"Реммаш с.п.",null,null,"Смирновское с.п.",null,null,null,null,null,"Трубинское с.п."]
[null,null,null,null,null,null,"Дубна г.о.",null,null,"Якотское с.п.",null,null,"Обушковское с.п.",null,null,null,null,null,null,null,null,"Юрловское с.п.",null,null,null,"Жаворонковское с.п.",null,"Малодубенское с.п.",null,null,null,"Заболотьевское с.п.",null,"Селковское с.п.",null,null,"Соколовское с.п."]
[null,null,null,null,null,null,"Егорьевский м.р.",null,null,null,null,null,"Онуфриевское с.п.",null,null,null,null,null,null,null,null,null,null,null,null,"Захаровское с.п.",null,"Новинское с.п.",null,null,null,"Константиновское",null,"Шеметовское с.п."]
[null,null,null,null,null,null,"Железнодорожный г.о.",null,null,null,null,null,"Павло-Слободское с.п.",null,null,null,null,null,null,null,null,null,null,null,null,"Назарьевское с.п.",null,"Соболевское с.п.",null,null,null,"Кузнецовское с.п."]
[null,null,null,null,null,null,"Жуковский г.о.",null,null,null,null,null,"Ядроминское с.п.",null,null,null,null,null,null,null,null,null,null,null,null,"Никольское с.п.",null,null,null,null,null,"Никоновское с.п."]
[null,null,null,null,null,null,"Зарайский м.р.",null,null,null,null,null,null,null,null,null,null,null,null,null,null,null,null,null,null,"Успенское с.п.",null,null,null,null,null,"Новохаритоновское с.п."]
[null,null,null,null,null,null,"Звездный городок ЗАТО г.о.",null,null,null,null,null,null,null,null,null,null,null,null,null,null,null,null,null,null,"Часцовское с.п.",null,null,null,null,null,"Островецкое с.п."]
[null,null,null,null,null,null,"Звенигород г.о.",null,null,null,null,null,null,null,null,null,null,null,null,null,null,null,null,null,null,null,null,null,null,null,null,"Рыболовское с.п."]
[null,null,null,null,null,null,"Ивантеевка г.о.",null,null,null,null,null,null,null,null,null,null,null,null,null,null,null,null,null,null,null,null,null,null,null,null,"Сафоновское с.п."]
[null,null,null,null,null,null,"Истринский м.р.",null,null,null,null,null,null,null,null,null,null,null,null,null,null,null,null,null,null,null,null,null,null,null,null,"Софьинское с.п."]
[null,null,null,null,null,null,"Каширский м.р.",null,null,null,null,null,null,null,null,null,null,null,null,null,null,null,null,null,null,null,null,null,null,null,null,"Ульянинское с.п."]
[null,null,null,null,null,null,"Климовск г.о.",null,null,null,null,null,null,null,null,null,null,null,null,null,null,null,null,null,null,null,null,null,null,null,null,"Чулковское с.п."]
[null,null,null,null,null,null,"Клинский м.р."]
[null,null,null,null,null,null,"Коломенский м.р."]
[null,null,null,null,null,null,"Коломна г.о."]
[null,null,null,null,null,null,"Королёв г.о."]
[null,null,null,null,null,null,"Котельники г.о."]
[null,null,null,null,null,null,"Красноармейск г.о."]
[null,null,null,null,null,null,"Красногорский м.р."]
[null,null,null,null,null,null,"Краснознаменск г.о."]
[null,null,null,null,null,null,"Ленинский м.р."]
[null,null,null,null,null,null,"Лобня г.о."]
[null,null,null,null,null,null,"Лосино-Петровский г.о."]
[null,null,null,null,null,null,"Лотошинский м.р."]
[null,null,null,null,null,null,"Луховицкий м.р."]
[null,null,null,null,null,null,"Лыткарино г.о."]
[null,null,null,null,null,null,"Люберецкий м.р."]
[null,null,null,null,null,null,"Можайский м.р."]
[null,null,null,null,null,null,"Молодежный ЗАТО г.о."]
[null,null,null,null,null,null,"Мытищинский м.р."]
[null,null,null,null,null,null,"Наро-Фоминский м.р."]
[null,null,null,null,null,null,"Ногинский м.р."]
[null,null,null,null,null,null,"Одинцовский м.р."]
[null,null,null,null,null,null,"Озёрский м.р."]
[null,null,null,null,null,null,"Орехово-Зуево г.о."]
[null,null,null,null,null,null,"Орехово-Зуевский м.р."]
[null,null,null,null,null,null,"Павлово-Посадский м.р."]
[null,null,null,null,null,null,"Подольск г.о."]
[null,null,null,null,null,null,"Подольский м.р."]
[null,null,null,null,null,null,"Протвино г.о."]
[null,null,null,null,null,null,"Пушкинский м.р."]
[null,null,null,null,null,null,"Пущино г.о."]
[null,null,null,null,null,null,"Раменский м.р."]
[null,null,null,null,null,null,"Реутов г.о."]
[null,null,null,null,null,null,"Рошаль г.о."]
[null,null,null,null,null,null,"Рузский м.р."]
[null,null,null,null,null,null,"Сергиево-Посадский м.р."]
[null,null,null,null,null,null,"Серебряно-Прудский м.р."]
[null,null,null,null,null,null,"Серпухов г.о."]
[null,null,null,null,null,null,"Серпуховский м.р."]
[null,null,null,null,null,null,"Солнечногорский м.р."]
[null,null,null,null,null,null,"Ступинский м.р."]
[null,null,null,null,null,null,"Талдомский м.р."]
[null,null,null,null,null,null,"Фрязино г.о."]
[null,null,null,null,null,null,"Химки г.о."]
[null,null,null,null,null,null,"Черноголовка г.о."]
[null,null,null,null,null,null,"Чеховский м.р."]
[null,null,null,null,null,null,"Шатурский м.р."]
[null,null,null,null,null,null,"Шаховской м.р."]
[null,null,null,null,null,null,"Щёлковский м.р."]
[null,null,null,null,null,null,"Электрогорск г.о."]
[null,null,null,null,null,null,"Электросталь г.о."]
[null,null,null,null,null,null,"Юбилейный г.о."]